Department family,Entity,Date,Expense Type,Expense area,Supplier,Transaction number,AP Amount (�)
Department of Health,NHS Sheffield CCG,30/06/2019,C&M-PMS Contract Value,PRC DELEGATED CO-COMMISSIONING,ABBEY LANE SURGERY,27604195,"24,052.93 "
Department of Health,NHS Sheffield CCG,30/06/2019,C&M-PMS DES Extended Hours Access,PRC DELEGATED CO-COMMISSIONING,ABBEY LANE SURGERY,27604195,"1,534.25 "
Department of Health,NHS Sheffield CCG,30/06/2019,C&M-PMS Out of Hours Opt Outs,PRC DELEGATED CO-COMMISSIONING,ABBEY LANE SURGERY,27604195,6.52 
Department of Health,NHS Sheffield CCG,30/06/2019,C&M-PMS Prem Notional Rent,PRC DELEGATED CO-COMMISSIONING,ABBEY LANE SURGERY,27604195,"2,122.92 "
Department of Health,NHS Sheffield CCG,30/06/2019,C&M-PMS QOF Achievement,PRC DELEGATED CO-COMMISSIONING,ABBEY LANE SURGERY,27604195,"12,288.48 "
Department of Health,NHS Sheffield CCG,30/06/2019,C&M-PMS QOF Aspiration,PRC DELEGATED CO-COMMISSIONING,ABBEY LANE SURGERY,27604195,"2,636.98 "
Department of Health,NHS Sheffield CCG,30/06/2019,Cont Care-Physical Disab (65+),CHC ADULT FULLY FUNDED,ABBEYCARE NURSING,27611728,"49,631.40 "
Department of Health,NHS Sheffield CCG,30/06/2019,C&M-PMS Contract Value,PRC DELEGATED CO-COMMISSIONING,AVENUE MEDICAL CENTRE SHEFFIELD,27604193,"55,814.49 "
Department of Health,NHS Sheffield CCG,30/06/2019,C&M-PMS DES Extended Hours Access,PRC DELEGATED CO-COMMISSIONING,AVENUE MEDICAL CENTRE SHEFFIELD,27604193,"3,406.23 "
Department of Health,NHS Sheffield CCG,30/06/2019,C&M-PMS PCO Other,PRC DELEGATED CO-COMMISSIONING,AVENUE MEDICAL CENTRE SHEFFIELD,27604193,460.30 
Department of Health,NHS Sheffield CCG,30/06/2019,C&M-PMS Prem Notional Rent,PRC DELEGATED CO-COMMISSIONING,AVENUE MEDICAL CENTRE SHEFFIELD,27604193,"5,546.67 "
Department of Health,NHS Sheffield CCG,30/06/2019,C&M-PMS Prem Rates,PRC DELEGATED CO-COMMISSIONING,AVENUE MEDICAL CENTRE SHEFFIELD,27604193,"1,264.00 "
Department of Health,NHS Sheffield CCG,30/06/2019,C&M-PMS QOF Achievement,PRC DELEGATED CO-COMMISSIONING,AVENUE MEDICAL CENTRE SHEFFIELD,27604193,"27,253.13 "
Department of Health,NHS Sheffield CCG,30/06/2019,C&M-PMS QOF Aspiration,PRC DELEGATED CO-COMMISSIONING,AVENUE MEDICAL CENTRE SHEFFIELD,27604193,"5,847.72 "
Department of Health,NHS Sheffield CCG,30/06/2019,Hcare Srv Rec Fdtn Trust-Contract Baseline,ACUTE COMMISSIONING,BARNSLEY HOSPITAL NHS FOUNDATION TRUST,27611711,"86,710.00 "
Department of Health,NHS Sheffield CCG,30/06/2019,Seconded-Basic Sal-Staff fm oth org,BEREAVEMENT SERVICE,BARNSLEY HOSPITAL NHS FOUNDATION TRUST,27765092,"31,203.00 "
Department of Health,NHS Sheffield CCG,30/06/2019,Hcare Srv Rec Fdtn Trust-Contract Baseline,ACUTE COMMISSIONING,BARNSLEY HOSPITAL NHS FOUNDATION TRUST,27868487,"86,710.00 "
Department of Health,NHS Sheffield CCG,30/06/2019,Hcare Srv Rec Fdtn Trust-Contract Baseline,ACUTE COMMISSIONING,BARNSLEY HOSPITAL NHS FOUNDATION TRUST,27868549,"149,808.00 "
Department of Health,NHS Sheffield CCG,30/06/2019,C&M-PMS Contract Value,PRC DELEGATED CO-COMMISSIONING,BARNSLEY ROAD SURGERY,27604197,"21,953.47 "
Department of Health,NHS Sheffield CCG,30/06/2019,C&M-PMS DES Extended Hours Access,PRC DELEGATED CO-COMMISSIONING,BARNSLEY ROAD SURGERY,27604197,"1,236.90 "
Department of Health,NHS Sheffield CCG,30/06/2019,C&M-PMS Prem Notional Rent,PRC DELEGATED CO-COMMISSIONING,BARNSLEY ROAD SURGERY,27604197,"2,652.17 "
Department of Health,NHS Sheffield CCG,30/06/2019,C&M-PMS QOF Achievement,PRC DELEGATED CO-COMMISSIONING,BARNSLEY ROAD SURGERY,27604197,"10,535.06 "
Department of Health,NHS Sheffield CCG,30/06/2019,C&M-PMS QOF Aspiration,PRC DELEGATED CO-COMMISSIONING,BARNSLEY ROAD SURGERY,27604197,"2,377.21 "
Department of Health,NHS Sheffield CCG,30/06/2019,C&M-GMS Cost of Drugs -Prescribing,LOCAL ENHANCED SERVICES,BASLOW ROAD & SHOREHAM STREET SURGERIES,27827114,"1,384.33 "
Department of Health,NHS Sheffield CCG,30/06/2019,C&M-GMS DES Extended Hours Access,PRC DELEGATED CO-COMMISSIONING,BASLOW ROAD & SHOREHAM STREET SURGERIES,27827114,"6,015.88 "
Department of Health,NHS Sheffield CCG,30/06/2019,C&M-GMS Global Sum,PRC DELEGATED CO-COMMISSIONING,BASLOW ROAD & SHOREHAM STREET SURGERIES,27827114,"97,868.74 "
Department of Health,NHS Sheffield CCG,30/06/2019,C&M-GMS MPIG Correction Factor,PRC DELEGATED CO-COMMISSIONING,BASLOW ROAD & SHOREHAM STREET SURGERIES,27827114,146.21 
Department of Health,NHS Sheffield CCG,30/06/2019,C&M-GMS PCO Seniority,PRC DELEGATED CO-COMMISSIONING,BASLOW ROAD & SHOREHAM STREET SURGERIES,27827114,"1,455.30 "
Department of Health,NHS Sheffield CCG,30/06/2019,C&M-GMS Prem Notional Rent,PRC DELEGATED CO-COMMISSIONING,BASLOW ROAD & SHOREHAM STREET SURGERIES,27827114,"8,222.71 "
Department of Health,NHS Sheffield CCG,30/06/2019,C&M-GMS Prem Rates,PRC DELEGATED CO-COMMISSIONING,BASLOW ROAD & SHOREHAM STREET SURGERIES,27827114,"2,421.00 "
Department of Health,NHS Sheffield CCG,30/06/2019,C&M-GMS Prof Fees Prescribing,PRC DELEGATED CO-COMMISSIONING,BASLOW ROAD & SHOREHAM STREET SURGERIES,27827114,230.89 
Department of Health,NHS Sheffield CCG,30/06/2019,C&M-GMS QOF Achievement,PRC DELEGATED CO-COMMISSIONING,BASLOW ROAD & SHOREHAM STREET SURGERIES,27827114,"39,659.97 "
Department of Health,NHS Sheffield CCG,30/06/2019,C&M-GMS QOF Aspiration,PRC DELEGATED CO-COMMISSIONING,BASLOW ROAD & SHOREHAM STREET SURGERIES,27827114,"10,278.96 "
Department of Health,NHS Sheffield CCG,30/06/2019,Cont Care-Physical Disab (65+),CHC ADULT FULLY FUNDED,BC SHEFFIELD LTD,27653631,"35,724.20 "
Department of Health,NHS Sheffield CCG,30/06/2019,C&M-PMS Contract Value,PRC DELEGATED CO-COMMISSIONING,BIRLEY HEALTH CENTRE,27604199,"64,354.60 "
Department of Health,NHS Sheffield CCG,30/06/2019,C&M-PMS DES Extended Hours Access,PRC DELEGATED CO-COMMISSIONING,BIRLEY HEALTH CENTRE,27604199,"4,052.70 "
Department of Health,NHS Sheffield CCG,30/06/2019,C&M-PMS PCO Locum Adop/Pat/Mat,PRC DELEGATED CO-COMMISSIONING,BIRLEY HEALTH CENTRE,27604199,"1,134.93 "
Department of Health,NHS Sheffield CCG,30/06/2019,C&M-PMS PCO Other,PRC DELEGATED CO-COMMISSIONING,BIRLEY HEALTH CENTRE,27604199,535.90 
Department of Health,NHS Sheffield CCG,30/06/2019,C&M-PMS PCO Seniority,PRC DELEGATED CO-COMMISSIONING,BIRLEY HEALTH CENTRE,27604199,"2,510.09 "
Department of Health,NHS Sheffield CCG,30/06/2019,C&M-PMS Prem Notional Rent,PRC DELEGATED CO-COMMISSIONING,BIRLEY HEALTH CENTRE,27604199,"7,600.58 "
Department of Health,NHS Sheffield CCG,30/06/2019,C&M-PMS Prem Rates,PRC DELEGATED CO-COMMISSIONING,BIRLEY HEALTH CENTRE,27604199,"1,407.00 "
Department of Health,NHS Sheffield CCG,30/06/2019,C&M-PMS QOF Achievement,PRC DELEGATED CO-COMMISSIONING,BIRLEY HEALTH CENTRE,27604199,"38,937.35 "
Department of Health,NHS Sheffield CCG,30/06/2019,C&M-PMS QOF Aspiration,PRC DELEGATED CO-COMMISSIONING,BIRLEY HEALTH CENTRE,27604199,"7,981.39 "
Department of Health,NHS Sheffield CCG,30/06/2019,Clinical&Medical-Independent Sector,ACUTE COMMISSIONING,BMI HEALTHCARE LTD,27564248,"59,155.50 "
Department of Health,NHS Sheffield CCG,30/06/2019,Clinical&Medical-Independent Sector,ACUTE COMMISSIONING,BMI HEALTHCARE LTD,27868707,"(37,727.77)"
Department of Health,NHS Sheffield CCG,30/06/2019,Cont Care-Physical Disab (<65),CHC ADULT FULLY FUNDED,BONDCARE,27653812,"26,600.43 "
Department of Health,NHS Sheffield CCG,30/06/2019,Cont Care-Funded Nursing Care Allow,FUNDED NURSING CARE,BONDCARE,27653858,"39,142.96 "
Department of Health,NHS Sheffield CCG,30/06/2019,C&M-GMS GP Statutory Levy,PRC DELEGATED CO-COMMISSIONING,BROOMHILL SURGERY,27827120,(588.78)
Department of Health,NHS Sheffield CCG,30/06/2019,C&M-GMS Voluntary Levy,PRC DELEGATED CO-COMMISSIONING,BROOMHILL SURGERY,27827120,(98.14)
Department of Health,NHS Sheffield CCG,30/06/2019,C&M-GMS Cost of Drugs -Prescribing,LOCAL ENHANCED SERVICES,BROOMHILL SURGERY,27827121,"2,357.64 "
Department of Health,NHS Sheffield CCG,30/06/2019,C&M-GMS DES Extended Hours Access,PRC DELEGATED CO-COMMISSIONING,BROOMHILL SURGERY,27827121,"4,661.18 "
Department of Health,NHS Sheffield CCG,30/06/2019,C&M-GMS Global Sum,PRC DELEGATED CO-COMMISSIONING,BROOMHILL SURGERY,27827121,"64,643.54 "
Department of Health,NHS Sheffield CCG,30/06/2019,C&M-GMS MPIG Correction Factor,PRC DELEGATED CO-COMMISSIONING,BROOMHILL SURGERY,27827121,251.00 
Department of Health,NHS Sheffield CCG,30/06/2019,C&M-GMS PCO Seniority,PRC DELEGATED CO-COMMISSIONING,BROOMHILL SURGERY,27827121,"1,516.40 "
Department of Health,NHS Sheffield CCG,30/06/2019,C&M-GMS Prem Cost Rent,PRC DELEGATED CO-COMMISSIONING,BROOMHILL SURGERY,27827121,"2,413.75 "
Department of Health,NHS Sheffield CCG,30/06/2019,C&M-GMS Prem Notional Rent,PRC DELEGATED CO-COMMISSIONING,BROOMHILL SURGERY,27827121,"2,612.50 "
Department of Health,NHS Sheffield CCG,30/06/2019,C&M-GMS Prem Rates,PRC DELEGATED CO-COMMISSIONING,BROOMHILL SURGERY,27827121,"1,891.00 "
Department of Health,NHS Sheffield CCG,30/06/2019,C&M-GMS Prof Fees Prescribing,PRC DELEGATED CO-COMMISSIONING,BROOMHILL SURGERY,27827121,139.50 
Department of Health,NHS Sheffield CCG,30/06/2019,C&M-GMS QOF Achievement,PRC DELEGATED CO-COMMISSIONING,BROOMHILL SURGERY,27827121,"26,381.29 "
Department of Health,NHS Sheffield CCG,30/06/2019,C&M-GMS QOF Aspiration,PRC DELEGATED CO-COMMISSIONING,BROOMHILL SURGERY,27827121,"6,211.39 "
Department of Health,NHS Sheffield CCG,30/06/2019,C&M-GMS Cost of Drugs -Prescribing,LOCAL ENHANCED SERVICES,BUCHANAN ROAD SURGERY,27827117,32.57 
Department of Health,NHS Sheffield CCG,30/06/2019,C&M-GMS Global Sum,PRC DELEGATED CO-COMMISSIONING,BUCHANAN ROAD SURGERY,27827117,"36,037.95 "
Department of Health,NHS Sheffield CCG,30/06/2019,C&M-GMS MPIG Correction Factor,PRC DELEGATED CO-COMMISSIONING,BUCHANAN ROAD SURGERY,27827117,655.25 
Department of Health,NHS Sheffield CCG,30/06/2019,C&M-GMS Prem Notional Rent,PRC DELEGATED CO-COMMISSIONING,BUCHANAN ROAD SURGERY,27827117,"2,595.83 "
Department of Health,NHS Sheffield CCG,30/06/2019,C&M-GMS Prem Rates,PRC DELEGATED CO-COMMISSIONING,BUCHANAN ROAD SURGERY,27827117,"2,650.00 "
Department of Health,NHS Sheffield CCG,30/06/2019,C&M-GMS Prof Fees Prescribing,PRC DELEGATED CO-COMMISSIONING,BUCHANAN ROAD SURGERY,27827117,14.43 
Department of Health,NHS Sheffield CCG,30/06/2019,C&M-GMS QOF Achievement,PRC DELEGATED CO-COMMISSIONING,BUCHANAN ROAD SURGERY,27827117,"20,708.38 "
Department of Health,NHS Sheffield CCG,30/06/2019,C&M-GMS QOF Aspiration,PRC DELEGATED CO-COMMISSIONING,BUCHANAN ROAD SURGERY,27827117,"4,303.24 "
Department of Health,NHS Sheffield CCG,30/06/2019,C&M-PMS Contract Value,PRC DELEGATED CO-COMMISSIONING,BURNCROSS SURGERY,27604201,"122,527.54 "
Department of Health,NHS Sheffield CCG,30/06/2019,C&M-PMS DES Extended Hours Access,PRC DELEGATED CO-COMMISSIONING,BURNCROSS SURGERY,27604201,"7,257.05 "
Department of Health,NHS Sheffield CCG,30/06/2019,C&M-PMS PCO Seniority,PRC DELEGATED CO-COMMISSIONING,BURNCROSS SURGERY,27604201,"1,987.59 "
Department of Health,NHS Sheffield CCG,30/06/2019,C&M-PMS Prem Notional Rent,PRC DELEGATED CO-COMMISSIONING,BURNCROSS SURGERY,27604201,"14,058.33 "
Department of Health,NHS Sheffield CCG,30/06/2019,C&M-PMS QOF Achievement,PRC DELEGATED CO-COMMISSIONING,BURNCROSS SURGERY,27604201,"64,523.52 "
Department of Health,NHS Sheffield CCG,30/06/2019,C&M-PMS QOF Aspiration,PRC DELEGATED CO-COMMISSIONING,BURNCROSS SURGERY,27604201,"15,732.40 "
Department of Health,NHS Sheffield CCG,30/06/2019,C&M-PMS Contract Value,PRC DELEGATED CO-COMMISSIONING,BURNGREAVE SURGERY,27604203,"58,011.47 "
Department of Health,NHS Sheffield CCG,30/06/2019,C&M-PMS DES Extended Hours Access,PRC DELEGATED CO-COMMISSIONING,BURNGREAVE SURGERY,27604203,"3,259.45 "
Department of Health,NHS Sheffield CCG,30/06/2019,C&M-PMS Prem Notional Rent,PRC DELEGATED CO-COMMISSIONING,BURNGREAVE SURGERY,27604203,"6,622.92 "
Department of Health,NHS Sheffield CCG,30/06/2019,C&M-PMS Prem Rates,PRC DELEGATED CO-COMMISSIONING,BURNGREAVE SURGERY,27604203,"2,140.00 "
Department of Health,NHS Sheffield CCG,30/06/2019,C&M-PMS QOF Achievement,PRC DELEGATED CO-COMMISSIONING,BURNGREAVE SURGERY,27604203,"27,997.29 "
Department of Health,NHS Sheffield CCG,30/06/2019,C&M-PMS QOF Aspiration,PRC DELEGATED CO-COMMISSIONING,BURNGREAVE SURGERY,27604203,"5,288.96 "
Department of Health,NHS Sheffield CCG,30/06/2019,C&M-GMS Cost of Drugs -Prescribing,LOCAL ENHANCED SERVICES,CARTERKNOWLE & DORE MEDICAL PRACTICE,27827126,"2,424.96 "
Department of Health,NHS Sheffield CCG,30/06/2019,C&M-GMS DES Extended Hours Access,PRC DELEGATED CO-COMMISSIONING,CARTERKNOWLE & DORE MEDICAL PRACTICE,27827126,"5,916.60 "
Department of Health,NHS Sheffield CCG,30/06/2019,C&M-GMS Global Sum,PRC DELEGATED CO-COMMISSIONING,CARTERKNOWLE & DORE MEDICAL PRACTICE,27827126,"84,611.10 "
Department of Health,NHS Sheffield CCG,30/06/2019,C&M-GMS MPIG Correction Factor,PRC DELEGATED CO-COMMISSIONING,CARTERKNOWLE & DORE MEDICAL PRACTICE,27827126,747.29 
Department of Health,NHS Sheffield CCG,30/06/2019,C&M-GMS PCO Seniority,PRC DELEGATED CO-COMMISSIONING,CARTERKNOWLE & DORE MEDICAL PRACTICE,27827126,"2,065.88 "
Department of Health,NHS Sheffield CCG,30/06/2019,C&M-GMS Prem Notional Rent,PRC DELEGATED CO-COMMISSIONING,CARTERKNOWLE & DORE MEDICAL PRACTICE,27827126,"7,596.50 "
Department of Health,NHS Sheffield CCG,30/06/2019,C&M-GMS Prof Fees Prescribing,PRC DELEGATED CO-COMMISSIONING,CARTERKNOWLE & DORE MEDICAL PRACTICE,27827126,127.48 
Department of Health,NHS Sheffield CCG,30/06/2019,C&M-GMS QOF Achievement,PRC DELEGATED CO-COMMISSIONING,CARTERKNOWLE & DORE MEDICAL PRACTICE,27827126,"42,621.52 "
Department of Health,NHS Sheffield CCG,30/06/2019,C&M-GMS QOF Aspiration,PRC DELEGATED CO-COMMISSIONING,CARTERKNOWLE & DORE MEDICAL PRACTICE,27827126,"10,055.02 "
Department of Health,NHS Sheffield CCG,30/06/2019,C&M-GMS Cost of Drugs -Prescribing,LOCAL ENHANCED SERVICES,CHARNOCK HEALTH PRIMARY CARE CENTRE,27827123,805.82 
Department of Health,NHS Sheffield CCG,30/06/2019,C&M-GMS DES Learn Dsblty Hlth Chk,PRC DELEGATED CO-COMMISSIONING,CHARNOCK HEALTH PRIMARY CARE CENTRE,27827123,"2,660.00 "
Department of Health,NHS Sheffield CCG,30/06/2019,C&M-GMS Global Sum,PRC DELEGATED CO-COMMISSIONING,CHARNOCK HEALTH PRIMARY CARE CENTRE,27827123,"42,774.51 "
Department of Health,NHS Sheffield CCG,30/06/2019,C&M-GMS MPIG Correction Factor,PRC DELEGATED CO-COMMISSIONING,CHARNOCK HEALTH PRIMARY CARE CENTRE,27827123,206.62 
Department of Health,NHS Sheffield CCG,30/06/2019,C&M-GMS PCO Other,PRC DELEGATED CO-COMMISSIONING,CHARNOCK HEALTH PRIMARY CARE CENTRE,27827123,363.80 
Department of Health,NHS Sheffield CCG,30/06/2019,C&M-GMS PCO Seniority,PRC DELEGATED CO-COMMISSIONING,CHARNOCK HEALTH PRIMARY CARE CENTRE,27827123,"1,231.88 "
Department of Health,NHS Sheffield CCG,30/06/2019,C&M-GMS Prem Notional Rent,PRC DELEGATED CO-COMMISSIONING,CHARNOCK HEALTH PRIMARY CARE CENTRE,27827123,335.00 
Department of Health,NHS Sheffield CCG,30/06/2019,C&M-GMS Prem Rates,PRC DELEGATED CO-COMMISSIONING,CHARNOCK HEALTH PRIMARY CARE CENTRE,27827123,"1,547.00 "
Department of Health,NHS Sheffield CCG,30/06/2019,C&M-GMS Prem Water Rates,PRC DELEGATED CO-COMMISSIONING,CHARNOCK HEALTH PRIMARY CARE CENTRE,27827123,124.62 
Department of Health,NHS Sheffield CCG,30/06/2019,C&M-GMS Prof Fees Prescribing,PRC DELEGATED CO-COMMISSIONING,CHARNOCK HEALTH PRIMARY CARE CENTRE,27827123,129.87 
Department of Health,NHS Sheffield CCG,30/06/2019,C&M-GMS QOF Achievement,PRC DELEGATED CO-COMMISSIONING,CHARNOCK HEALTH PRIMARY CARE CENTRE,27827123,"24,220.18 "
Department of Health,NHS Sheffield CCG,30/06/2019,C&M-GMS QOF Aspiration,PRC DELEGATED CO-COMMISSIONING,CHARNOCK HEALTH PRIMARY CARE CENTRE,27827123,"4,932.79 "
Department of Health,NHS Sheffield CCG,30/06/2019,Hcare Srv Rec Fdtn Trust-Contract Baseline,ACUTE COMMISSIONING,CHESTERFIELD ROYAL HOSPITAL NHS FOUNDATION TRUST,27765088,"422,902.00 "
Department of Health,NHS Sheffield CCG,30/06/2019,Clinical&Medical-Independent Sector,ACUTE COMMISSIONING,CLAREMONT HOSPITAL,27611736,"66,095.00 "
Department of Health,NHS Sheffield CCG,30/06/2019,C&M-APMS Contract Value,PRC DELEGATED CO-COMMISSIONING,CLOVER CITY PRACTICE,27604275,"27,479.23 "
Department of Health,NHS Sheffield CCG,30/06/2019,C&M-APMS DES Extended Hours Access,PRC DELEGATED CO-COMMISSIONING,CLOVER CITY PRACTICE,27604275,"2,139.40 "
Department of Health,NHS Sheffield CCG,30/06/2019,C&M-PMS QOF Aspiration,PRC DELEGATED CO-COMMISSIONING,CLOVER CITY PRACTICE,27604275,"1,537.57 "
Department of Health,NHS Sheffield CCG,30/06/2019,C&M-APMS Contract Value,PRC DELEGATED CO-COMMISSIONING,CLOVER GROUP PRACTICE,27604207,"125,906.14 "
Department of Health,NHS Sheffield CCG,30/06/2019,C&M-APMS DES Extended Hours Access,PRC DELEGATED CO-COMMISSIONING,CLOVER GROUP PRACTICE,27604207,"8,024.65 "
Department of Health,NHS Sheffield CCG,30/06/2019,C&M-APMS Prem Actual Rent,PRC DELEGATED CO-COMMISSIONING,CLOVER GROUP PRACTICE,27604207,"7,973.85 "
Department of Health,NHS Sheffield CCG,30/06/2019,C&M-APMS Prem Healthcentre Rent,PRC DELEGATED CO-COMMISSIONING,CLOVER GROUP PRACTICE,27604207,"60,934.32 "
Department of Health,NHS Sheffield CCG,30/06/2019,C&M-APMS Prem Notional Rent,PRC DELEGATED CO-COMMISSIONING,CLOVER GROUP PRACTICE,27604207,"2,804.17 "
Department of Health,NHS Sheffield CCG,30/06/2019,C&M-PMS QOF Aspiration,PRC DELEGATED CO-COMMISSIONING,CLOVER GROUP PRACTICE,27604207,"11,480.20 "
Department of Health,NHS Sheffield CCG,30/06/2019,Voids and Subsidies,PRC DELEGATED CO-COMMISSIONING,COMMUNITY HEALTH PARTNERSHIPS LTD,27611731,"37,050.51 "
Department of Health,NHS Sheffield CCG,30/06/2019,Voids and Subsidies,RECHARGES NHS PROPERTY SERVICES LTD,COMMUNITY HEALTH PARTNERSHIPS LTD,27611731,"117,396.67 "
Department of Health,NHS Sheffield CCG,30/06/2019,Cont Care-Funded Nursing Care Allow,FUNDED NURSING CARE,COUNTRY COURT CARE LTD,27653821,"29,091.14 "
Department of Health,NHS Sheffield CCG,30/06/2019,C&M-GMS Cost of Drugs -Prescribing,LOCAL ENHANCED SERVICES,CROOKES PRACTICE,27827131,705.06 
Department of Health,NHS Sheffield CCG,30/06/2019,C&M-GMS DES Extended Hours Access,PRC DELEGATED CO-COMMISSIONING,CROOKES PRACTICE,27827131,"3,861.75 "
Department of Health,NHS Sheffield CCG,30/06/2019,C&M-GMS Global Sum,PRC DELEGATED CO-COMMISSIONING,CROOKES PRACTICE,27827131,"50,587.43 "
Department of Health,NHS Sheffield CCG,30/06/2019,C&M-GMS MPIG Correction Factor,PRC DELEGATED CO-COMMISSIONING,CROOKES PRACTICE,27827131,772.96 
Department of Health,NHS Sheffield CCG,30/06/2019,C&M-GMS PCO Seniority,PRC DELEGATED CO-COMMISSIONING,CROOKES PRACTICE,27827131,"1,248.39 "
Department of Health,NHS Sheffield CCG,30/06/2019,C&M-GMS Prem Notional Rent,PRC DELEGATED CO-COMMISSIONING,CROOKES PRACTICE,27827131,"3,874.67 "
Department of Health,NHS Sheffield CCG,30/06/2019,C&M-GMS Prem Rates,PRC DELEGATED CO-COMMISSIONING,CROOKES PRACTICE,27827131,"1,510.00 "
Department of Health,NHS Sheffield CCG,30/06/2019,C&M-GMS Prem Water Rates,PRC DELEGATED CO-COMMISSIONING,CROOKES PRACTICE,27827131,173.87 
Department of Health,NHS Sheffield CCG,30/06/2019,C&M-GMS Prof Fees Prescribing,PRC DELEGATED CO-COMMISSIONING,CROOKES PRACTICE,27827131,117.86 
Department of Health,NHS Sheffield CCG,30/06/2019,C&M-GMS QOF Achievement,PRC DELEGATED CO-COMMISSIONING,CROOKES PRACTICE,27827131,"19,294.67 "
Department of Health,NHS Sheffield CCG,30/06/2019,C&M-GMS QOF Aspiration,PRC DELEGATED CO-COMMISSIONING,CROOKES PRACTICE,27827131,"4,885.77 "
Department of Health,NHS Sheffield CCG,30/06/2019,Voids and Subsidies,RECHARGES NHS PROPERTY SERVICES LTD,DARNALL WELL BEING,27574944,"31,340.50 "
Department of Health,NHS Sheffield CCG,30/06/2019,Voids and Subsidies,RECHARGES NHS PROPERTY SERVICES LTD,DARNALL WELL BEING,27896240,"25,354.14 "
Department of Health,NHS Sheffield CCG,30/06/2019,C&M-PMS Contract Value,PRC DELEGATED CO-COMMISSIONING,DEEPCAR MEDICAL CENTRE,27604209,"42,479.46 "
Department of Health,NHS Sheffield CCG,30/06/2019,C&M-PMS DES Extended Hours Access,PRC DELEGATED CO-COMMISSIONING,DEEPCAR MEDICAL CENTRE,27604209,"2,544.58 "
Department of Health,NHS Sheffield CCG,30/06/2019,C&M-PMS Dispensing Quality Sch,PRC DELEGATED CO-COMMISSIONING,DEEPCAR MEDICAL CENTRE,27604209,"1,124.88 "
Department of Health,NHS Sheffield CCG,30/06/2019,C&M-PMS PCO Seniority,PRC DELEGATED CO-COMMISSIONING,DEEPCAR MEDICAL CENTRE,27604209,992.07 
Department of Health,NHS Sheffield CCG,30/06/2019,C&M-PMS Prem Healthcentre Rent,PRC DELEGATED CO-COMMISSIONING,DEEPCAR MEDICAL CENTRE,27604209,"31,611.16 "
Department of Health,NHS Sheffield CCG,30/06/2019,C&M-PMS QOF Achievement,PRC DELEGATED CO-COMMISSIONING,DEEPCAR MEDICAL CENTRE,27604209,"20,175.39 "
Department of Health,NHS Sheffield CCG,30/06/2019,C&M-PMS QOF Aspiration,PRC DELEGATED CO-COMMISSIONING,DEEPCAR MEDICAL CENTRE,27604209,"4,298.67 "
Department of Health,NHS Sheffield CCG,30/06/2019,External Consultancy Fees,BEREAVEMENT SERVICE,DELOITTE MCS LTD,27762740,"157,426.39 "
Department of Health,NHS Sheffield CCG,30/06/2019,C&M-GMS Cost of Drugs -Prescribing,LOCAL ENHANCED SERVICES,DEVONSHIRE GREEN MEDICAL CENTRE,27827134,480.81 
Department of Health,NHS Sheffield CCG,30/06/2019,C&M-GMS Global Sum,PRC DELEGATED CO-COMMISSIONING,DEVONSHIRE GREEN MEDICAL CENTRE,27827134,"46,344.93 "
Department of Health,NHS Sheffield CCG,30/06/2019,C&M-GMS MPIG Correction Factor,PRC DELEGATED CO-COMMISSIONING,DEVONSHIRE GREEN MEDICAL CENTRE,27827134,"1,615.60 "
Department of Health,NHS Sheffield CCG,30/06/2019,C&M-GMS PCO Other,PRC DELEGATED CO-COMMISSIONING,DEVONSHIRE GREEN MEDICAL CENTRE,27827134,"4,524.00 "
Department of Health,NHS Sheffield CCG,30/06/2019,C&M-GMS PCO Seniority,PRC DELEGATED CO-COMMISSIONING,DEVONSHIRE GREEN MEDICAL CENTRE,27827134,"1,761.20 "
Department of Health,NHS Sheffield CCG,30/06/2019,C&M-GMS Prem Notional Rent,PRC DELEGATED CO-COMMISSIONING,DEVONSHIRE GREEN MEDICAL CENTRE,27827134,"5,987.50 "
Department of Health,NHS Sheffield CCG,30/06/2019,C&M-GMS Prem Rates,PRC DELEGATED CO-COMMISSIONING,DEVONSHIRE GREEN MEDICAL CENTRE,27827134,"2,927.72 "
Department of Health,NHS Sheffield CCG,30/06/2019,C&M-GMS Prof Fees Prescribing,PRC DELEGATED CO-COMMISSIONING,DEVONSHIRE GREEN MEDICAL CENTRE,27827134,96.21 
Department of Health,NHS Sheffield CCG,30/06/2019,C&M-GMS QOF Aspiration,PRC DELEGATED CO-COMMISSIONING,DEVONSHIRE GREEN MEDICAL CENTRE,27827134,"4,805.68 "
Department of Health,NHS Sheffield CCG,30/06/2019,Hcare Srv Rec Fdtn Trust-Contract Baseline,ACUTE COMMISSIONING,DONCASTER AND BASSETLAW HOSPITALS NHS FOUNDATION TRUST,27611706,"44,305.00 "
Department of Health,NHS Sheffield CCG,30/06/2019,Miscellaneous Expenditure (L9),BEREAVEMENT SERVICE,DONCASTER AND BASSETLAW HOSPITALS NHS FOUNDATION TRUST,27868320,(0.55)
Department of Health,NHS Sheffield CCG,30/06/2019,Oth Travel Costs-Car Mileage,BEREAVEMENT SERVICE,DONCASTER AND BASSETLAW HOSPITALS NHS FOUNDATION TRUST,27868320,237.18 
Department of Health,NHS Sheffield CCG,30/06/2019,Other Travel Costs - Car Parking,BEREAVEMENT SERVICE,DONCASTER AND BASSETLAW HOSPITALS NHS FOUNDATION TRUST,27868320,(21.08)
Department of Health,NHS Sheffield CCG,30/06/2019,Seconded-Basic Sal-Staff fm oth org,BEREAVEMENT SERVICE,DONCASTER AND BASSETLAW HOSPITALS NHS FOUNDATION TRUST,27868320,"29,203.76 "
Department of Health,NHS Sheffield CCG,30/06/2019,C&M-PMS Contract Value,PRC DELEGATED CO-COMMISSIONING,DOVERCOURT SURGERY,27604211,"73,792.14 "
Department of Health,NHS Sheffield CCG,30/06/2019,C&M-PMS DES Extended Hours Access,PRC DELEGATED CO-COMMISSIONING,DOVERCOURT SURGERY,27604211,"4,040.35 "
Department of Health,NHS Sheffield CCG,30/06/2019,C&M-PMS DES Learn Dsblty Hlth Chk,PRC DELEGATED CO-COMMISSIONING,DOVERCOURT SURGERY,27604211,"1,260.00 "
Department of Health,NHS Sheffield CCG,30/06/2019,C&M-PMS Out of Hours Opt Outs,PRC DELEGATED CO-COMMISSIONING,DOVERCOURT SURGERY,27604211,8.40 
Department of Health,NHS Sheffield CCG,30/06/2019,C&M-PMS PCO Other,PRC DELEGATED CO-COMMISSIONING,DOVERCOURT SURGERY,27604211,536.10 
Department of Health,NHS Sheffield CCG,30/06/2019,C&M-PMS PCO Seniority,PRC DELEGATED CO-COMMISSIONING,DOVERCOURT SURGERY,27604211,"1,102.01 "
Department of Health,NHS Sheffield CCG,30/06/2019,C&M-PMS Prem Actual Rent,PRC DELEGATED CO-COMMISSIONING,DOVERCOURT SURGERY,27604211,"12,400.00 "
Department of Health,NHS Sheffield CCG,30/06/2019,C&M-PMS Prem Notional Rent,PRC DELEGATED CO-COMMISSIONING,DOVERCOURT SURGERY,27604211,"1,708.33 "
Department of Health,NHS Sheffield CCG,30/06/2019,C&M-PMS QOF Achievement,PRC DELEGATED CO-COMMISSIONING,DOVERCOURT SURGERY,27604211,"36,311.71 "
Department of Health,NHS Sheffield CCG,30/06/2019,C&M-PMS QOF Aspiration,PRC DELEGATED CO-COMMISSIONING,DOVERCOURT SURGERY,27604211,"7,675.00 "
Department of Health,NHS Sheffield CCG,30/06/2019,C&M-PMS Contract Value,PRC DELEGATED CO-COMMISSIONING,DR MEHROTRA & PARTNER,27604213,"26,688.54 "
Department of Health,NHS Sheffield CCG,30/06/2019,C&M-PMS DES Extended Hours Access,PRC DELEGATED CO-COMMISSIONING,DR MEHROTRA & PARTNER,27604213,"1,441.63 "
Department of Health,NHS Sheffield CCG,30/06/2019,C&M-PMS PCO Other,PRC DELEGATED CO-COMMISSIONING,DR MEHROTRA & PARTNER,27604213,713.40 
Department of Health,NHS Sheffield CCG,30/06/2019,C&M-PMS PCO Seniority,PRC DELEGATED CO-COMMISSIONING,DR MEHROTRA & PARTNER,27604213,448.52 
Department of Health,NHS Sheffield CCG,30/06/2019,C&M-PMS Prem Actual Rent,PRC DELEGATED CO-COMMISSIONING,DR MEHROTRA & PARTNER,27604213,"2,650.00 "
Department of Health,NHS Sheffield CCG,30/06/2019,C&M-PMS Prem Notional Rent,PRC DELEGATED CO-COMMISSIONING,DR MEHROTRA & PARTNER,27604213,"5,157.29 "
Department of Health,NHS Sheffield CCG,30/06/2019,C&M-PMS QOF Achievement,PRC DELEGATED CO-COMMISSIONING,DR MEHROTRA & PARTNER,27604213,"8,295.68 "
Department of Health,NHS Sheffield CCG,30/06/2019,C&M-PMS QOF Aspiration,PRC DELEGATED CO-COMMISSIONING,DR MEHROTRA & PARTNER,27604213,"2,763.65 "
Department of Health,NHS Sheffield CCG,30/06/2019,C&M-PMS Contract Value,PRC DELEGATED CO-COMMISSIONING,DR MILNER & PARTNERS,27604215,"76,279.10 "
Department of Health,NHS Sheffield CCG,30/06/2019,C&M-PMS DES Extended Hours Access,PRC DELEGATED CO-COMMISSIONING,DR MILNER & PARTNERS,27604215,"5,056.85 "
Department of Health,NHS Sheffield CCG,30/06/2019,C&M-PMS Out of Hours Opt Outs,PRC DELEGATED CO-COMMISSIONING,DR MILNER & PARTNERS,27604215,7.01 
Department of Health,NHS Sheffield CCG,30/06/2019,C&M-PMS PCO Seniority,PRC DELEGATED CO-COMMISSIONING,DR MILNER & PARTNERS,27604215,"1,189.92 "
Department of Health,NHS Sheffield CCG,30/06/2019,C&M-PMS Prem Actual Rent,PRC DELEGATED CO-COMMISSIONING,DR MILNER & PARTNERS,27604215,"11,382.00 "
Department of Health,NHS Sheffield CCG,30/06/2019,C&M-PMS Prem Notional Rent,PRC DELEGATED CO-COMMISSIONING,DR MILNER & PARTNERS,27604215,"4,462.42 "
Department of Health,NHS Sheffield CCG,30/06/2019,C&M-PMS Prem Rates,PRC DELEGATED CO-COMMISSIONING,DR MILNER & PARTNERS,27604215,"2,593.00 "
Department of Health,NHS Sheffield CCG,30/06/2019,C&M-PMS QOF Achievement,PRC DELEGATED CO-COMMISSIONING,DR MILNER & PARTNERS,27604215,"27,984.25 "
Department of Health,NHS Sheffield CCG,30/06/2019,C&M-PMS QOF Aspiration,PRC DELEGATED CO-COMMISSIONING,DR MILNER & PARTNERS,27604215,"6,513.90 "
Department of Health,NHS Sheffield CCG,30/06/2019,C&M-GMS Cost of Drugs -Prescribing,LOCAL ENHANCED SERVICES,DUKE MEDICAL CENTRE,27827142,"1,607.83 "
Department of Health,NHS Sheffield CCG,30/06/2019,C&M-GMS DES Extended Hours Access,PRC DELEGATED CO-COMMISSIONING,DUKE MEDICAL CENTRE,27827142,"3,409.55 "
Department of Health,NHS Sheffield CCG,30/06/2019,C&M-GMS DES Learn Dsblty Hlth Chk,PRC DELEGATED CO-COMMISSIONING,DUKE MEDICAL CENTRE,27827142,280.00 
Department of Health,NHS Sheffield CCG,30/06/2019,C&M-GMS Global Sum,PRC DELEGATED CO-COMMISSIONING,DUKE MEDICAL CENTRE,27827142,"58,458.34 "
Department of Health,NHS Sheffield CCG,30/06/2019,C&M-GMS MPIG Correction Factor,PRC DELEGATED CO-COMMISSIONING,DUKE MEDICAL CENTRE,27827142,306.25 
Department of Health,NHS Sheffield CCG,30/06/2019,C&M-GMS PCO Other,PRC DELEGATED CO-COMMISSIONING,DUKE MEDICAL CENTRE,27827142,458.30 
Department of Health,NHS Sheffield CCG,30/06/2019,C&M-GMS PCO Seniority,PRC DELEGATED CO-COMMISSIONING,DUKE MEDICAL CENTRE,27827142,"1,138.06 "
Department of Health,NHS Sheffield CCG,30/06/2019,C&M-GMS Prem Notional Rent,PRC DELEGATED CO-COMMISSIONING,DUKE MEDICAL CENTRE,27827142,"5,721.67 "
Department of Health,NHS Sheffield CCG,30/06/2019,C&M-GMS Prem Rates,PRC DELEGATED CO-COMMISSIONING,DUKE MEDICAL CENTRE,27827142,"2,625.76 "
Department of Health,NHS Sheffield CCG,30/06/2019,C&M-GMS Prof Fees Prescribing,PRC DELEGATED CO-COMMISSIONING,DUKE MEDICAL CENTRE,27827142,209.24 
Department of Health,NHS Sheffield CCG,30/06/2019,C&M-GMS QOF Achievement,PRC DELEGATED CO-COMMISSIONING,DUKE MEDICAL CENTRE,27827142,"25,187.42 "
Department of Health,NHS Sheffield CCG,30/06/2019,C&M-GMS QOF Aspiration,PRC DELEGATED CO-COMMISSIONING,DUKE MEDICAL CENTRE,27827142,"5,166.69 "
Department of Health,NHS Sheffield CCG,30/06/2019,C&M-PMS Contract Value,PRC DELEGATED CO-COMMISSIONING,DUNNINC ROAD SURGERY,27604217,"23,977.32 "
Department of Health,NHS Sheffield CCG,30/06/2019,C&M-PMS DES Extended Hours Access,PRC DELEGATED CO-COMMISSIONING,DUNNINC ROAD SURGERY,27604217,"1,403.15 "
Department of Health,NHS Sheffield CCG,30/06/2019,C&M-PMS PCO Other,PRC DELEGATED CO-COMMISSIONING,DUNNINC ROAD SURGERY,27604217,"2,213.00 "
Department of Health,NHS Sheffield CCG,30/06/2019,C&M-PMS PCO Seniority,PRC DELEGATED CO-COMMISSIONING,DUNNINC ROAD SURGERY,27604217,"1,300.53 "
Department of Health,NHS Sheffield CCG,30/06/2019,C&M-PMS Prem Notional Rent,PRC DELEGATED CO-COMMISSIONING,DUNNINC ROAD SURGERY,27604217,"1,664.58 "
Department of Health,NHS Sheffield CCG,30/06/2019,C&M-PMS Prem Water Rates,PRC DELEGATED CO-COMMISSIONING,DUNNINC ROAD SURGERY,27604217,200.78 
Department of Health,NHS Sheffield CCG,30/06/2019,C&M-PMS QOF Achievement,PRC DELEGATED CO-COMMISSIONING,DUNNINC ROAD SURGERY,27604217,"2,981.91 "
Department of Health,NHS Sheffield CCG,30/06/2019,C&M-PMS QOF Aspiration,PRC DELEGATED CO-COMMISSIONING,DUNNINC ROAD SURGERY,27604217,"2,054.91 "
Department of Health,NHS Sheffield CCG,30/06/2019,C&M-PMS Contract Value,PRC DELEGATED CO-COMMISSIONING,DYKES HALL MEDICAL CENTRE,27604219,"73,875.71 "
Department of Health,NHS Sheffield CCG,30/06/2019,C&M-PMS DES Extended Hours Access,PRC DELEGATED CO-COMMISSIONING,DYKES HALL MEDICAL CENTRE,27604219,"4,612.25 "
Department of Health,NHS Sheffield CCG,30/06/2019,C&M-PMS Out of Hours Opt Outs,PRC DELEGATED CO-COMMISSIONING,DYKES HALL MEDICAL CENTRE,27604219,21.06 
Department of Health,NHS Sheffield CCG,30/06/2019,C&M-PMS PCO Seniority,PRC DELEGATED CO-COMMISSIONING,DYKES HALL MEDICAL CENTRE,27604219,"1,468.18 "
Department of Health,NHS Sheffield CCG,30/06/2019,C&M-PMS Prem Notional Rent,PRC DELEGATED CO-COMMISSIONING,DYKES HALL MEDICAL CENTRE,27604219,"5,377.08 "
Department of Health,NHS Sheffield CCG,30/06/2019,C&M-PMS QOF Achievement,PRC DELEGATED CO-COMMISSIONING,DYKES HALL MEDICAL CENTRE,27604219,"39,293.29 "
Department of Health,NHS Sheffield CCG,30/06/2019,C&M-PMS QOF Aspiration,PRC DELEGATED CO-COMMISSIONING,DYKES HALL MEDICAL CENTRE,27604219,"8,323.49 "
Department of Health,NHS Sheffield CCG,30/06/2019,C&M-PMS Contract Value,PRC DELEGATED CO-COMMISSIONING,EAST BANK MEDICAL CENTRE,27604221,"49,114.35 "
Department of Health,NHS Sheffield CCG,30/06/2019,C&M-PMS DES Extended Hours Access,PRC DELEGATED CO-COMMISSIONING,EAST BANK MEDICAL CENTRE,27604221,"2,793.48 "
Department of Health,NHS Sheffield CCG,30/06/2019,C&M-PMS DES Learn Dsblty Hlth Chk,PRC DELEGATED CO-COMMISSIONING,EAST BANK MEDICAL CENTRE,27604221,"6,020.00 "
Department of Health,NHS Sheffield CCG,30/06/2019,C&M-PMS PCO Seniority,PRC DELEGATED CO-COMMISSIONING,EAST BANK MEDICAL CENTRE,27604221,823.98 
Department of Health,NHS Sheffield CCG,30/06/2019,C&M-PMS Prem Notional Rent,PRC DELEGATED CO-COMMISSIONING,EAST BANK MEDICAL CENTRE,27604221,"10,583.33 "
Department of Health,NHS Sheffield CCG,30/06/2019,C&M-PMS Prem Rates,PRC DELEGATED CO-COMMISSIONING,EAST BANK MEDICAL CENTRE,27604221,"2,898.00 "
Department of Health,NHS Sheffield CCG,30/06/2019,C&M-PMS QOF Achievement,PRC DELEGATED CO-COMMISSIONING,EAST BANK MEDICAL CENTRE,27604221,"23,693.72 "
Department of Health,NHS Sheffield CCG,30/06/2019,C&M-PMS QOF Aspiration,PRC DELEGATED CO-COMMISSIONING,EAST BANK MEDICAL CENTRE,27604221,"5,026.31 "
Department of Health,NHS Sheffield CCG,30/06/2019,C&M-GMS Cost of Drugs -Prescribing,LOCAL ENHANCED SERVICES,ECCLESFIELD GROUP PRACTICE,27827138,"2,411.31 "
Department of Health,NHS Sheffield CCG,30/06/2019,C&M-GMS DES Extended Hours Access,PRC DELEGATED CO-COMMISSIONING,ECCLESFIELD GROUP PRACTICE,27827138,"3,984.78 "
Department of Health,NHS Sheffield CCG,30/06/2019,C&M-GMS Global Sum,PRC DELEGATED CO-COMMISSIONING,ECCLESFIELD GROUP PRACTICE,27827138,"68,343.79 "
Department of Health,NHS Sheffield CCG,30/06/2019,C&M-GMS PCO Other,PRC DELEGATED CO-COMMISSIONING,ECCLESFIELD GROUP PRACTICE,27827138,525.30 
Department of Health,NHS Sheffield CCG,30/06/2019,C&M-GMS PCO Seniority,PRC DELEGATED CO-COMMISSIONING,ECCLESFIELD GROUP PRACTICE,27827138,"1,323.90 "
Department of Health,NHS Sheffield CCG,30/06/2019,C&M-GMS Prem Notional Rent,PRC DELEGATED CO-COMMISSIONING,ECCLESFIELD GROUP PRACTICE,27827138,"6,805.42 "
Department of Health,NHS Sheffield CCG,30/06/2019,C&M-GMS Prem Rates,PRC DELEGATED CO-COMMISSIONING,ECCLESFIELD GROUP PRACTICE,27827138,"1,527.00 "
Department of Health,NHS Sheffield CCG,30/06/2019,C&M-GMS Prof Fees Prescribing,PRC DELEGATED CO-COMMISSIONING,ECCLESFIELD GROUP PRACTICE,27827138,279.01 
Department of Health,NHS Sheffield CCG,30/06/2019,C&M-GMS QOF Achievement,PRC DELEGATED CO-COMMISSIONING,ECCLESFIELD GROUP PRACTICE,27827138,"44,517.55 "
Department of Health,NHS Sheffield CCG,30/06/2019,C&M-GMS QOF Aspiration,PRC DELEGATED CO-COMMISSIONING,ECCLESFIELD GROUP PRACTICE,27827138,"9,179.49 "
Department of Health,NHS Sheffield CCG,30/06/2019,C&M-GMS Cost of Drugs -Prescribing,LOCAL ENHANCED SERVICES,ELM LANE SURGERY,27827140,"1,393.65 "
Department of Health,NHS Sheffield CCG,30/06/2019,C&M-GMS Global Sum,PRC DELEGATED CO-COMMISSIONING,ELM LANE SURGERY,27827140,"40,484.03 "
Department of Health,NHS Sheffield CCG,30/06/2019,C&M-GMS MPIG Correction Factor,PRC DELEGATED CO-COMMISSIONING,ELM LANE SURGERY,27827140,419.26 
Department of Health,NHS Sheffield CCG,30/06/2019,C&M-GMS Prem Notional Rent,PRC DELEGATED CO-COMMISSIONING,ELM LANE SURGERY,27827140,"5,305.50 "
Department of Health,NHS Sheffield CCG,30/06/2019,C&M-GMS Prof Fees Prescribing,PRC DELEGATED CO-COMMISSIONING,ELM LANE SURGERY,27827140,129.88 
Department of Health,NHS Sheffield CCG,30/06/2019,C&M-GMS QOF Achievement,PRC DELEGATED CO-COMMISSIONING,ELM LANE SURGERY,27827140,"23,657.78 "
Department of Health,NHS Sheffield CCG,30/06/2019,C&M-GMS QOF Aspiration,PRC DELEGATED CO-COMMISSIONING,ELM LANE SURGERY,27827140,"4,720.25 "
Department of Health,NHS Sheffield CCG,30/06/2019,Cont Care-Physical Disab (<65),CHC ADULT FULLY FUNDED,FAIRWINDS HEALTH CARE LTD,27653903,"37,939.03 "
Department of Health,NHS Sheffield CCG,30/06/2019,C&M-PMS Contract Value,PRC DELEGATED CO-COMMISSIONING,FALKLAND HOUSE,27604225,"26,313.98 "
Department of Health,NHS Sheffield CCG,30/06/2019,C&M-PMS DES Extended Hours Access,PRC DELEGATED CO-COMMISSIONING,FALKLAND HOUSE,27604225,"1,884.33 "
Department of Health,NHS Sheffield CCG,30/06/2019,C&M-PMS PCO Other,PRC DELEGATED CO-COMMISSIONING,FALKLAND HOUSE,27604225,276.40 
Department of Health,NHS Sheffield CCG,30/06/2019,C&M-PMS PCO Seniority,PRC DELEGATED CO-COMMISSIONING,FALKLAND HOUSE,27604225,"1,324.87 "
Department of Health,NHS Sheffield CCG,30/06/2019,C&M-PMS Prem Notional Rent,PRC DELEGATED CO-COMMISSIONING,FALKLAND HOUSE,27604225,"1,866.67 "
Department of Health,NHS Sheffield CCG,30/06/2019,C&M-PMS Prem Rates,PRC DELEGATED CO-COMMISSIONING,FALKLAND HOUSE,27604225,773.00 
Department of Health,NHS Sheffield CCG,30/06/2019,C&M-PMS QOF Achievement,PRC DELEGATED CO-COMMISSIONING,FALKLAND HOUSE,27604225,"13,052.00 "
Department of Health,NHS Sheffield CCG,30/06/2019,C&M-PMS QOF Aspiration,PRC DELEGATED CO-COMMISSIONING,FALKLAND HOUSE,27604225,"2,925.24 "
Department of Health,NHS Sheffield CCG,30/06/2019,C&M-GMS Cost of Drugs -Prescribing,LOCAL ENHANCED SERVICES,FAR LANE MEDICAL CENTRE,27827149,182.46 
Department of Health,NHS Sheffield CCG,30/06/2019,C&M-GMS Global Sum,PRC DELEGATED CO-COMMISSIONING,FAR LANE MEDICAL CENTRE,27827149,"55,471.86 "
Department of Health,NHS Sheffield CCG,30/06/2019,C&M-GMS PCO Seniority,PRC DELEGATED CO-COMMISSIONING,FAR LANE MEDICAL CENTRE,27827149,"3,000.44 "
Department of Health,NHS Sheffield CCG,30/06/2019,C&M-GMS Prem Notional Rent,PRC DELEGATED CO-COMMISSIONING,FAR LANE MEDICAL CENTRE,27827149,"3,462.50 "
Department of Health,NHS Sheffield CCG,30/06/2019,C&M-GMS Prem Rates,PRC DELEGATED CO-COMMISSIONING,FAR LANE MEDICAL CENTRE,27827149,"1,184.00 "
Department of Health,NHS Sheffield CCG,30/06/2019,C&M-GMS Prof Fees Prescribing,PRC DELEGATED CO-COMMISSIONING,FAR LANE MEDICAL CENTRE,27827149,52.92 
Department of Health,NHS Sheffield CCG,30/06/2019,C&M-GMS QOF Achievement,PRC DELEGATED CO-COMMISSIONING,FAR LANE MEDICAL CENTRE,27827149,"23,733.99 "
Department of Health,NHS Sheffield CCG,30/06/2019,C&M-GMS QOF Aspiration,PRC DELEGATED CO-COMMISSIONING,FAR LANE MEDICAL CENTRE,27827149,"5,719.80 "
Department of Health,NHS Sheffield CCG,30/06/2019,C&M-PMS Contract Value,PRC DELEGATED CO-COMMISSIONING,FIRTH PARK SURGERY,27604223,"75,770.72 "
Department of Health,NHS Sheffield CCG,30/06/2019,C&M-PMS DES Extended Hours Access,PRC DELEGATED CO-COMMISSIONING,FIRTH PARK SURGERY,27604223,"4,801.78 "
Department of Health,NHS Sheffield CCG,30/06/2019,C&M-PMS PCO Seniority,PRC DELEGATED CO-COMMISSIONING,FIRTH PARK SURGERY,27604223,"1,797.72 "
Department of Health,NHS Sheffield CCG,30/06/2019,C&M-PMS Prem Notional Rent,PRC DELEGATED CO-COMMISSIONING,FIRTH PARK SURGERY,27604223,"4,500.00 "
Department of Health,NHS Sheffield CCG,30/06/2019,C&M-PMS Prem Rates,PRC DELEGATED CO-COMMISSIONING,FIRTH PARK SURGERY,27604223,"1,360.00 "
Department of Health,NHS Sheffield CCG,30/06/2019,C&M-PMS Prem Water Rates,PRC DELEGATED CO-COMMISSIONING,FIRTH PARK SURGERY,27604223,166.37 
Department of Health,NHS Sheffield CCG,30/06/2019,C&M-PMS QOF Achievement,PRC DELEGATED CO-COMMISSIONING,FIRTH PARK SURGERY,27604223,"34,354.69 "
Department of Health,NHS Sheffield CCG,30/06/2019,C&M-PMS QOF Aspiration,PRC DELEGATED CO-COMMISSIONING,FIRTH PARK SURGERY,27604223,"7,493.92 "
Department of Health,NHS Sheffield CCG,30/06/2019,C&M-PMS Contract Value,PRC DELEGATED CO-COMMISSIONING,FORGE HEALTH GROUP,27604273,"117,439.43 "
Department of Health,NHS Sheffield CCG,30/06/2019,C&M-PMS DES Extended Hours Access,PRC DELEGATED CO-COMMISSIONING,FORGE HEALTH GROUP,27604273,"6,868.50 "
Department of Health,NHS Sheffield CCG,30/06/2019,C&M-PMS Out of Hours Opt Outs,PRC DELEGATED CO-COMMISSIONING,FORGE HEALTH GROUP,27604273,10.15 
Department of Health,NHS Sheffield CCG,30/06/2019,C&M-PMS PCO Locum Adop/Pat/Mat,PRC DELEGATED CO-COMMISSIONING,FORGE HEALTH GROUP,27604273,"13,758.13 "
Department of Health,NHS Sheffield CCG,30/06/2019,C&M-PMS Prem Healthcentre Rent,PRC DELEGATED CO-COMMISSIONING,FORGE HEALTH GROUP,27604273,"34,427.10 "
Department of Health,NHS Sheffield CCG,30/06/2019,C&M-PMS Prem Notional Rent,PRC DELEGATED CO-COMMISSIONING,FORGE HEALTH GROUP,27604273,"9,650.00 "
Department of Health,NHS Sheffield CCG,30/06/2019,C&M-PMS Prem Rates,PRC DELEGATED CO-COMMISSIONING,FORGE HEALTH GROUP,27604273,"1,990.00 "
Department of Health,NHS Sheffield CCG,30/06/2019,C&M-PMS QOF Achievement,PRC DELEGATED CO-COMMISSIONING,FORGE HEALTH GROUP,27604273,"29,043.28 "
Department of Health,NHS Sheffield CCG,30/06/2019,C&M-PMS QOF Aspiration,PRC DELEGATED CO-COMMISSIONING,FORGE HEALTH GROUP,27604273,"6,964.24 "
Department of Health,NHS Sheffield CCG,30/06/2019,Cont Care-Physical Disab (<65),CHC ADULT FULLY FUNDED,FOUR SEASONS HEALTH CARE LTD,27653835,"35,070.64 "
Department of Health,NHS Sheffield CCG,30/06/2019,C&M-PMS Contract Value,PRC DELEGATED CO-COMMISSIONING,FOXHILL MEDICAL CENTRE SHEFFIELD,27604271,"52,388.04 "
Department of Health,NHS Sheffield CCG,30/06/2019,C&M-PMS DES Extended Hours Access,PRC DELEGATED CO-COMMISSIONING,FOXHILL MEDICAL CENTRE SHEFFIELD,27604271,"2,928.38 "
Department of Health,NHS Sheffield CCG,30/06/2019,C&M-PMS PCO Seniority,PRC DELEGATED CO-COMMISSIONING,FOXHILL MEDICAL CENTRE SHEFFIELD,27604271,"2,101.99 "
Department of Health,NHS Sheffield CCG,30/06/2019,C&M-PMS Prem Healthcentre Rent,PRC DELEGATED CO-COMMISSIONING,FOXHILL MEDICAL CENTRE SHEFFIELD,27604271,"46,751.17 "
Department of Health,NHS Sheffield CCG,30/06/2019,C&M-PMS QOF Achievement,PRC DELEGATED CO-COMMISSIONING,FOXHILL MEDICAL CENTRE SHEFFIELD,27604271,"25,006.54 "
Department of Health,NHS Sheffield CCG,30/06/2019,C&M-PMS QOF Aspiration,PRC DELEGATED CO-COMMISSIONING,FOXHILL MEDICAL CENTRE SHEFFIELD,27604271,"5,618.87 "
Department of Health,NHS Sheffield CCG,30/06/2019,C&M-PMS Contract Value,PRC DELEGATED CO-COMMISSIONING,GLEADLESS MEDICAL CENTRE,27604227,"69,698.13 "
Department of Health,NHS Sheffield CCG,30/06/2019,C&M-PMS DES Learn Dsblty Hlth Chk,PRC DELEGATED CO-COMMISSIONING,GLEADLESS MEDICAL CENTRE,27604227,"5,180.00 "
Department of Health,NHS Sheffield CCG,30/06/2019,C&M-PMS PCO Other,PRC DELEGATED CO-COMMISSIONING,GLEADLESS MEDICAL CENTRE,27604227,551.40 
Department of Health,NHS Sheffield CCG,30/06/2019,C&M-PMS PCO Seniority,PRC DELEGATED CO-COMMISSIONING,GLEADLESS MEDICAL CENTRE,27604227,"2,507.00 "
Department of Health,NHS Sheffield CCG,30/06/2019,C&M-PMS Prem Notional Rent,PRC DELEGATED CO-COMMISSIONING,GLEADLESS MEDICAL CENTRE,27604227,"6,750.00 "
Department of Health,NHS Sheffield CCG,30/06/2019,C&M-PMS Prem Rates,PRC DELEGATED CO-COMMISSIONING,GLEADLESS MEDICAL CENTRE,27604227,"1,657.00 "
Department of Health,NHS Sheffield CCG,30/06/2019,C&M-PMS QOF Achievement,PRC DELEGATED CO-COMMISSIONING,GLEADLESS MEDICAL CENTRE,27604227,"33,660.49 "
Department of Health,NHS Sheffield CCG,30/06/2019,C&M-PMS QOF Aspiration,PRC DELEGATED CO-COMMISSIONING,GLEADLESS MEDICAL CENTRE,27604227,"7,710.90 "
Department of Health,NHS Sheffield CCG,30/06/2019,C&M-GMS Cost of Drugs -Prescribing,LOCAL ENHANCED SERVICES,GRENOSIDE SURGERY,27827157,"2,037.93 "
Department of Health,NHS Sheffield CCG,30/06/2019,C&M-GMS DES Extended Hours Access,PRC DELEGATED CO-COMMISSIONING,GRENOSIDE SURGERY,27827157,"3,546.35 "
Department of Health,NHS Sheffield CCG,30/06/2019,C&M-GMS Global Sum,PRC DELEGATED CO-COMMISSIONING,GRENOSIDE SURGERY,27827157,"58,075.70 "
Department of Health,NHS Sheffield CCG,30/06/2019,C&M-GMS PCO Other,PRC DELEGATED CO-COMMISSIONING,GRENOSIDE SURGERY,27827157,475.50 
Department of Health,NHS Sheffield CCG,30/06/2019,C&M-GMS PCO Seniority,PRC DELEGATED CO-COMMISSIONING,GRENOSIDE SURGERY,27827157,"1,206.46 "
Department of Health,NHS Sheffield CCG,30/06/2019,C&M-GMS Prem Notional Rent,PRC DELEGATED CO-COMMISSIONING,GRENOSIDE SURGERY,27827157,"8,110.42 "
Department of Health,NHS Sheffield CCG,30/06/2019,C&M-GMS Prem Rates,PRC DELEGATED CO-COMMISSIONING,GRENOSIDE SURGERY,27827157,"2,075.00 "
Department of Health,NHS Sheffield CCG,30/06/2019,C&M-GMS Prof Fees Prescribing,PRC DELEGATED CO-COMMISSIONING,GRENOSIDE SURGERY,27827157,132.28 
Department of Health,NHS Sheffield CCG,30/06/2019,C&M-GMS QOF Achievement,PRC DELEGATED CO-COMMISSIONING,GRENOSIDE SURGERY,27827157,"25,220.84 "
Department of Health,NHS Sheffield CCG,30/06/2019,C&M-GMS QOF Aspiration,PRC DELEGATED CO-COMMISSIONING,GRENOSIDE SURGERY,27827157,"5,686.85 "
Department of Health,NHS Sheffield CCG,30/06/2019,C&M-GMS Cost of Drugs -Prescribing,LOCAL ENHANCED SERVICES,GREYSTONES MEDICAL CENTRE,27827159,230.48 
Department of Health,NHS Sheffield CCG,30/06/2019,C&M-GMS DES Extended Hours Access,PRC DELEGATED CO-COMMISSIONING,GREYSTONES MEDICAL CENTRE,27827159,"1,761.30 "
Department of Health,NHS Sheffield CCG,30/06/2019,C&M-GMS Global Sum,PRC DELEGATED CO-COMMISSIONING,GREYSTONES MEDICAL CENTRE,27827159,"19,644.01 "
Department of Health,NHS Sheffield CCG,30/06/2019,C&M-GMS MPIG Correction Factor,PRC DELEGATED CO-COMMISSIONING,GREYSTONES MEDICAL CENTRE,27827159,552.23 
Department of Health,NHS Sheffield CCG,30/06/2019,C&M-GMS PCO Locum Adop/Pat/Mat,PRC DELEGATED CO-COMMISSIONING,GREYSTONES MEDICAL CENTRE,27827159,"11,313.93 "
Department of Health,NHS Sheffield CCG,30/06/2019,C&M-GMS PCO Other,PRC DELEGATED CO-COMMISSIONING,GREYSTONES MEDICAL CENTRE,27827159,263.10 
Department of Health,NHS Sheffield CCG,30/06/2019,C&M-GMS PCO Seniority,PRC DELEGATED CO-COMMISSIONING,GREYSTONES MEDICAL CENTRE,27827159,406.76 
Department of Health,NHS Sheffield CCG,30/06/2019,C&M-GMS Prem Notional Rent,PRC DELEGATED CO-COMMISSIONING,GREYSTONES MEDICAL CENTRE,27827159,"2,885.42 "
Department of Health,NHS Sheffield CCG,30/06/2019,C&M-GMS Prem Rates,PRC DELEGATED CO-COMMISSIONING,GREYSTONES MEDICAL CENTRE,27827159,606.00 
Department of Health,NHS Sheffield CCG,30/06/2019,C&M-GMS Prof Fees Prescribing,PRC DELEGATED CO-COMMISSIONING,GREYSTONES MEDICAL CENTRE,27827159,50.51 
Department of Health,NHS Sheffield CCG,30/06/2019,C&M-GMS QOF Achievement,PRC DELEGATED CO-COMMISSIONING,GREYSTONES MEDICAL CENTRE,27827159,"10,933.27 "
Department of Health,NHS Sheffield CCG,30/06/2019,C&M-GMS QOF Aspiration,PRC DELEGATED CO-COMMISSIONING,GREYSTONES MEDICAL CENTRE,27827159,"2,314.72 "
Department of Health,NHS Sheffield CCG,30/06/2019,C&M-PMS Contract Value,PRC DELEGATED CO-COMMISSIONING,HACKENTHORPE MEDICAL CENTRE,27604229,"49,399.96 "
Department of Health,NHS Sheffield CCG,30/06/2019,C&M-PMS DES Extended Hours Access,PRC DELEGATED CO-COMMISSIONING,HACKENTHORPE MEDICAL CENTRE,27604229,"3,206.73 "
Department of Health,NHS Sheffield CCG,30/06/2019,C&M-PMS PCO Locum Adop/Pat/Mat,PRC DELEGATED CO-COMMISSIONING,HACKENTHORPE MEDICAL CENTRE,27604229,"23,462.45 "
Department of Health,NHS Sheffield CCG,30/06/2019,C&M-PMS PCO Other,PRC DELEGATED CO-COMMISSIONING,HACKENTHORPE MEDICAL CENTRE,27604229,435.20 
Department of Health,NHS Sheffield CCG,30/06/2019,C&M-PMS PCO Seniority,PRC DELEGATED CO-COMMISSIONING,HACKENTHORPE MEDICAL CENTRE,27604229,"1,942.20 "
Department of Health,NHS Sheffield CCG,30/06/2019,C&M-PMS Prem Notional Rent,PRC DELEGATED CO-COMMISSIONING,HACKENTHORPE MEDICAL CENTRE,27604229,"5,116.67 "
Department of Health,NHS Sheffield CCG,30/06/2019,C&M-PMS Prem Rates,PRC DELEGATED CO-COMMISSIONING,HACKENTHORPE MEDICAL CENTRE,27604229,"1,363.00 "
Department of Health,NHS Sheffield CCG,30/06/2019,C&M-PMS Prem Water Rates,PRC DELEGATED CO-COMMISSIONING,HACKENTHORPE MEDICAL CENTRE,27604229,104.78 
Department of Health,NHS Sheffield CCG,30/06/2019,C&M-PMS QOF Achievement,PRC DELEGATED CO-COMMISSIONING,HACKENTHORPE MEDICAL CENTRE,27604229,"30,697.56 "
Department of Health,NHS Sheffield CCG,30/06/2019,C&M-PMS QOF Aspiration,PRC DELEGATED CO-COMMISSIONING,HACKENTHORPE MEDICAL CENTRE,27604229,"6,528.39 "
Department of Health,NHS Sheffield CCG,30/06/2019,C&M-GMS Cost of Drugs -Prescribing,LOCAL ENHANCED SERVICES,HANDSWORTH MEDICAL PRACTICE SHEFFIELD,27827155,"1,551.66 "
Department of Health,NHS Sheffield CCG,30/06/2019,C&M-GMS DES Extended Hours Access,PRC DELEGATED CO-COMMISSIONING,HANDSWORTH MEDICAL PRACTICE SHEFFIELD,27827155,"4,792.28 "
Department of Health,NHS Sheffield CCG,30/06/2019,C&M-GMS Global Sum,PRC DELEGATED CO-COMMISSIONING,HANDSWORTH MEDICAL PRACTICE SHEFFIELD,27827155,"77,020.45 "
Department of Health,NHS Sheffield CCG,30/06/2019,C&M-GMS PCO Other,PRC DELEGATED CO-COMMISSIONING,HANDSWORTH MEDICAL PRACTICE SHEFFIELD,27827155,"6,210.00 "
Department of Health,NHS Sheffield CCG,30/06/2019,C&M-GMS PCO Seniority,PRC DELEGATED CO-COMMISSIONING,HANDSWORTH MEDICAL PRACTICE SHEFFIELD,27827155,"1,344.20 "
Department of Health,NHS Sheffield CCG,30/06/2019,C&M-GMS Prem Notional Rent,PRC DELEGATED CO-COMMISSIONING,HANDSWORTH MEDICAL PRACTICE SHEFFIELD,27827155,"3,321.66 "
Department of Health,NHS Sheffield CCG,30/06/2019,C&M-GMS Prem Rates,PRC DELEGATED CO-COMMISSIONING,HANDSWORTH MEDICAL PRACTICE SHEFFIELD,27827155,"10,232.00 "
Department of Health,NHS Sheffield CCG,30/06/2019,C&M-GMS Prof Fees Prescribing,PRC DELEGATED CO-COMMISSIONING,HANDSWORTH MEDICAL PRACTICE SHEFFIELD,27827155,252.53 
Department of Health,NHS Sheffield CCG,30/06/2019,C&M-GMS QOF Achievement,PRC DELEGATED CO-COMMISSIONING,HANDSWORTH MEDICAL PRACTICE SHEFFIELD,27827155,"39,302.29 "
Department of Health,NHS Sheffield CCG,30/06/2019,C&M-GMS QOF Aspiration,PRC DELEGATED CO-COMMISSIONING,HANDSWORTH MEDICAL PRACTICE SHEFFIELD,27827155,"7,811.29 "
Department of Health,NHS Sheffield CCG,30/06/2019,C&M-GMS DES Extended Hours Access,PRC DELEGATED CO-COMMISSIONING,HAROLD STREET MEDICAL CENTRE,27827152,"1,455.40 "
Department of Health,NHS Sheffield CCG,30/06/2019,C&M-GMS Global Sum,PRC DELEGATED CO-COMMISSIONING,HAROLD STREET MEDICAL CENTRE,27827152,"20,265.88 "
Department of Health,NHS Sheffield CCG,30/06/2019,C&M-GMS PCO Seniority,PRC DELEGATED CO-COMMISSIONING,HAROLD STREET MEDICAL CENTRE,27827152,836.05 
Department of Health,NHS Sheffield CCG,30/06/2019,C&M-GMS Prem Notional Rent,PRC DELEGATED CO-COMMISSIONING,HAROLD STREET MEDICAL CENTRE,27827152,"2,337.50 "
Department of Health,NHS Sheffield CCG,30/06/2019,C&M-GMS QOF Achievement,PRC DELEGATED CO-COMMISSIONING,HAROLD STREET MEDICAL CENTRE,27827152,"10,642.34 "
Department of Health,NHS Sheffield CCG,30/06/2019,C&M-GMS QOF Aspiration,PRC DELEGATED CO-COMMISSIONING,HAROLD STREET MEDICAL CENTRE,27827152,"2,228.59 "
Department of Health,NHS Sheffield CCG,30/06/2019,C&M-GMS Cost of Drugs -Prescribing,LOCAL ENHANCED SERVICES,HEALTH CARE SURGERY,27827165,237.28 
Department of Health,NHS Sheffield CCG,30/06/2019,C&M-GMS DES Extended Hours Access,PRC DELEGATED CO-COMMISSIONING,HEALTH CARE SURGERY,27827165,"2,413.48 "
Department of Health,NHS Sheffield CCG,30/06/2019,C&M-GMS DES Learn Dsblty Hlth Chk,PRC DELEGATED CO-COMMISSIONING,HEALTH CARE SURGERY,27827165,560.00 
Department of Health,NHS Sheffield CCG,30/06/2019,C&M-GMS Global Sum,PRC DELEGATED CO-COMMISSIONING,HEALTH CARE SURGERY,27827165,"38,313.93 "
Department of Health,NHS Sheffield CCG,30/06/2019,C&M-GMS MPIG Correction Factor,PRC DELEGATED CO-COMMISSIONING,HEALTH CARE SURGERY,27827165,390.01 
Department of Health,NHS Sheffield CCG,30/06/2019,C&M-GMS Prem Notional Rent,PRC DELEGATED CO-COMMISSIONING,HEALTH CARE SURGERY,27827165,"3,862.50 "
Department of Health,NHS Sheffield CCG,30/06/2019,C&M-GMS Prem Rates,PRC DELEGATED CO-COMMISSIONING,HEALTH CARE SURGERY,27827165,645.88 
Department of Health,NHS Sheffield CCG,30/06/2019,C&M-GMS Prof Fees Prescribing,PRC DELEGATED CO-COMMISSIONING,HEALTH CARE SURGERY,27827165,88.99 
Department of Health,NHS Sheffield CCG,30/06/2019,C&M-GMS QOF Achievement,PRC DELEGATED CO-COMMISSIONING,HEALTH CARE SURGERY,27827165,"19,065.29 "
Department of Health,NHS Sheffield CCG,30/06/2019,C&M-GMS QOF Aspiration,PRC DELEGATED CO-COMMISSIONING,HEALTH CARE SURGERY,27827165,"4,056.36 "
Department of Health,NHS Sheffield CCG,30/06/2019,C&M-GMS Cost of Drugs -Prescribing,LOCAL ENHANCED SERVICES,HEELEY GREEN SURGERY,27827161,"1,105.10 "
Department of Health,NHS Sheffield CCG,30/06/2019,C&M-GMS DES Extended Hours Access,PRC DELEGATED CO-COMMISSIONING,HEELEY GREEN SURGERY,27827161,"2,830.05 "
Department of Health,NHS Sheffield CCG,30/06/2019,C&M-GMS Global Sum,PRC DELEGATED CO-COMMISSIONING,HEELEY GREEN SURGERY,27827161,"42,507.17 "
Department of Health,NHS Sheffield CCG,30/06/2019,C&M-GMS MPIG Correction Factor,PRC DELEGATED CO-COMMISSIONING,HEELEY GREEN SURGERY,27827161,188.10 
Department of Health,NHS Sheffield CCG,30/06/2019,C&M-GMS PCO Seniority,PRC DELEGATED CO-COMMISSIONING,HEELEY GREEN SURGERY,27827161,560.21 
Department of Health,NHS Sheffield CCG,30/06/2019,C&M-GMS Prem Notional Rent,PRC DELEGATED CO-COMMISSIONING,HEELEY GREEN SURGERY,27827161,"3,254.17 "
Department of Health,NHS Sheffield CCG,30/06/2019,C&M-GMS Prem Rates,PRC DELEGATED CO-COMMISSIONING,HEELEY GREEN SURGERY,27827161,917.27 
Department of Health,NHS Sheffield CCG,30/06/2019,C&M-GMS Prof Fees Prescribing,PRC DELEGATED CO-COMMISSIONING,HEELEY GREEN SURGERY,27827161,105.84 
Department of Health,NHS Sheffield CCG,30/06/2019,C&M-GMS QOF Achievement,PRC DELEGATED CO-COMMISSIONING,HEELEY GREEN SURGERY,27827161,"21,013.31 "
Department of Health,NHS Sheffield CCG,30/06/2019,C&M-GMS QOF Aspiration,PRC DELEGATED CO-COMMISSIONING,HEELEY GREEN SURGERY,27827161,"4,709.02 "
Department of Health,NHS Sheffield CCG,30/06/2019,C&M-GMS Cost of Drugs -Prescribing,LOCAL ENHANCED SERVICES,HOLLIES MEDICAL CENTRE,27827163,"1,205.54 "
Department of Health,NHS Sheffield CCG,30/06/2019,C&M-GMS DES Extended Hours Access,PRC DELEGATED CO-COMMISSIONING,HOLLIES MEDICAL CENTRE,27827163,"4,534.35 "
Department of Health,NHS Sheffield CCG,30/06/2019,C&M-GMS DES Learn Dsblty Hlth Chk,PRC DELEGATED CO-COMMISSIONING,HOLLIES MEDICAL CENTRE,27827163,"1,680.00 "
Department of Health,NHS Sheffield CCG,30/06/2019,C&M-GMS Global Sum,PRC DELEGATED CO-COMMISSIONING,HOLLIES MEDICAL CENTRE,27827163,"60,207.92 "
Department of Health,NHS Sheffield CCG,30/06/2019,C&M-GMS MPIG Correction Factor,PRC DELEGATED CO-COMMISSIONING,HOLLIES MEDICAL CENTRE,27827163,726.36 
Department of Health,NHS Sheffield CCG,30/06/2019,C&M-GMS PCO Seniority,PRC DELEGATED CO-COMMISSIONING,HOLLIES MEDICAL CENTRE,27827163,"1,648.54 "
Department of Health,NHS Sheffield CCG,30/06/2019,C&M-GMS Prem Notional Rent,PRC DELEGATED CO-COMMISSIONING,HOLLIES MEDICAL CENTRE,27827163,"3,229.17 "
Department of Health,NHS Sheffield CCG,30/06/2019,C&M-GMS Prof Fees Prescribing,PRC DELEGATED CO-COMMISSIONING,HOLLIES MEDICAL CENTRE,27827163,98.61 
Department of Health,NHS Sheffield CCG,30/06/2019,C&M-GMS QOF Achievement,PRC DELEGATED CO-COMMISSIONING,HOLLIES MEDICAL CENTRE,27827163,"37,160.28 "
Department of Health,NHS Sheffield CCG,30/06/2019,C&M-GMS QOF Aspiration,PRC DELEGATED CO-COMMISSIONING,HOLLIES MEDICAL CENTRE,27827163,"6,991.81 "
Department of Health,NHS Sheffield CCG,30/06/2019,Cont Care- Prior Year Payments,CHC ADULT FULLY FUNDED,HORIZON CARE HOMES LTD,27620020,"89,848.89 "
Department of Health,NHS Sheffield CCG,30/06/2019,Cont Care-Physical Disab (65+),CHC ADULT FULLY FUNDED,HORIZON CARE HOMES LTD,27620020,"17,510.48 "
Department of Health,NHS Sheffield CCG,30/06/2019,Cont Care-Physical Disab (<65),CHC ADULT FULLY FUNDED,HORIZON CARE HOMES LTD,27721774,"47,373.92 "
Department of Health,NHS Sheffield CCG,30/06/2019,Cont Care-Physical Disab (<65),CHC ADULT FULLY FUNDED,HORIZON CARE HOMES LTD,27721779,"48,560.46 "
Department of Health,NHS Sheffield CCG,30/06/2019,Cont Care-Physical Disab (<65),CHC ADULT FULLY FUNDED,HORIZON CARE HOMES LTD,27739840,"32,271.46 "
Department of Health,NHS Sheffield CCG,30/06/2019,Hcare Srv Rec NHS Trust-Non Contract,NCAS/OATS,HULL UNIVERSITY TEACHING HOSPITAL NHS TRUST,27524252,"27,164.00 "
Department of Health,NHS Sheffield CCG,30/06/2019,Hcare Srv Rec NHS Trust-Non Contract,NCAS/OATS,HULL UNIVERSITY TEACHING HOSPITAL NHS TRUST,27653461,"71,354.00 "
Department of Health,NHS Sheffield CCG,30/06/2019,C&M-PMS Contract Value,PRC DELEGATED CO-COMMISSIONING,JAUNTY SPRINGS HEALTH CENTRE,27604231,"31,275.81 "
Department of Health,NHS Sheffield CCG,30/06/2019,C&M-PMS DES Extended Hours Access,PRC DELEGATED CO-COMMISSIONING,JAUNTY SPRINGS HEALTH CENTRE,27604231,"1,779.83 "
Department of Health,NHS Sheffield CCG,30/06/2019,C&M-PMS PCO Other,PRC DELEGATED CO-COMMISSIONING,JAUNTY SPRINGS HEALTH CENTRE,27604231,263.60 
Department of Health,NHS Sheffield CCG,30/06/2019,C&M-PMS PCO Seniority,PRC DELEGATED CO-COMMISSIONING,JAUNTY SPRINGS HEALTH CENTRE,27604231,665.29 
Department of Health,NHS Sheffield CCG,30/06/2019,C&M-PMS Prem Notional Rent,PRC DELEGATED CO-COMMISSIONING,JAUNTY SPRINGS HEALTH CENTRE,27604231,"3,208.33 "
Department of Health,NHS Sheffield CCG,30/06/2019,C&M-PMS Prem Rates,PRC DELEGATED CO-COMMISSIONING,JAUNTY SPRINGS HEALTH CENTRE,27604231,710.00 
Department of Health,NHS Sheffield CCG,30/06/2019,C&M-PMS Prem Water Rates,PRC DELEGATED CO-COMMISSIONING,JAUNTY SPRINGS HEALTH CENTRE,27604231,60.78 
Department of Health,NHS Sheffield CCG,30/06/2019,C&M-PMS QOF Achievement,PRC DELEGATED CO-COMMISSIONING,JAUNTY SPRINGS HEALTH CENTRE,27604231,"19,468.38 "
Department of Health,NHS Sheffield CCG,30/06/2019,C&M-PMS QOF Aspiration,PRC DELEGATED CO-COMMISSIONING,JAUNTY SPRINGS HEALTH CENTRE,27604231,"4,020.11 "
Department of Health,NHS Sheffield CCG,30/06/2019,C&M-GMS IT Comm Servs -GP Practices,PRIMARY CARE IT,KIER BUSINESS SERVICES LTD,27653922,"100,142.40 "
Department of Health,NHS Sheffield CCG,30/06/2019,FM Computer Contracts,BUSINESS INFORMATICS,KIER BUSINESS SERVICES LTD,27653922,"36,193.20 "
Department of Health,NHS Sheffield CCG,30/06/2019,C&M-GMS LES Translation Fees,INTERPRETING SERVICES,LANGUAGELINE SOLUTIONS,27653556,"47,488.32 "
Department of Health,NHS Sheffield CCG,30/06/2019,C&M-GMS LES Translation Fees,INTERPRETING SERVICES,LANGUAGELINE SOLUTIONS,27653561,"28,096.20 "
Department of Health,NHS Sheffield CCG,30/06/2019,Hcare Srv Rec NHS Trust-Contract Baseline,ACUTE COMMISSIONING,LEEDS TEACHING HOSPITALS NHS TRUST,27523761,"52,379.26 "
Department of Health,NHS Sheffield CCG,30/06/2019,Hcare Srv Rec NHS Trust-Contract Baseline,ACUTE COMMISSIONING,LEEDS TEACHING HOSPITALS NHS TRUST,27524098,"57,500.00 "
Department of Health,NHS Sheffield CCG,30/06/2019,Hcare Srv Rec NHS Trust-Contract Baseline,ACUTE COMMISSIONING,LEEDS TEACHING HOSPITALS NHS TRUST,27524264,"(52,379.26)"
Department of Health,NHS Sheffield CCG,30/06/2019,Hcare Srv Rec NHS Trust-Contract Baseline,ACUTE COMMISSIONING,LEEDS TEACHING HOSPITALS NHS TRUST,27653521,"70,000.74 "
Department of Health,NHS Sheffield CCG,30/06/2019,Cont Care-Physical Disab (<65),CHC ADULT FULLY FUNDED,LONGLEY HEALTH CARE LTD,27653816,"86,467.89 "
Department of Health,NHS Sheffield CCG,30/06/2019,Cont Care-Physical Disab (<65),CHC ADULT FULLY FUNDED,LOXLEY HEALTH CARE LTD,27653907,"50,212.42 "
Department of Health,NHS Sheffield CCG,30/06/2019,C&M-PMS Contract Value,PRC DELEGATED CO-COMMISSIONING,MANCHESTER ROAD SURGERY SHEFFIELD,27604235,"33,111.07 "
Department of Health,NHS Sheffield CCG,30/06/2019,C&M-PMS PCO Other,PRC DELEGATED CO-COMMISSIONING,MANCHESTER ROAD SURGERY SHEFFIELD,27604235,"3,208.00 "
Department of Health,NHS Sheffield CCG,30/06/2019,C&M-PMS PCO Seniority,PRC DELEGATED CO-COMMISSIONING,MANCHESTER ROAD SURGERY SHEFFIELD,27604235,"1,284.47 "
Department of Health,NHS Sheffield CCG,30/06/2019,C&M-PMS Prem Cost Rent,PRC DELEGATED CO-COMMISSIONING,MANCHESTER ROAD SURGERY SHEFFIELD,27604235,"3,472.17 "
Department of Health,NHS Sheffield CCG,30/06/2019,C&M-PMS Prem Notional Rent,PRC DELEGATED CO-COMMISSIONING,MANCHESTER ROAD SURGERY SHEFFIELD,27604235,442.92 
Department of Health,NHS Sheffield CCG,30/06/2019,C&M-PMS Prem Rates,PRC DELEGATED CO-COMMISSIONING,MANCHESTER ROAD SURGERY SHEFFIELD,27604235,970.00 
Department of Health,NHS Sheffield CCG,30/06/2019,C&M-PMS Prem Water Rates,PRC DELEGATED CO-COMMISSIONING,MANCHESTER ROAD SURGERY SHEFFIELD,27604235,134.30 
Department of Health,NHS Sheffield CCG,30/06/2019,C&M-PMS QOF Achievement,PRC DELEGATED CO-COMMISSIONING,MANCHESTER ROAD SURGERY SHEFFIELD,27604235,"16,792.18 "
Department of Health,NHS Sheffield CCG,30/06/2019,C&M-PMS QOF Aspiration,PRC DELEGATED CO-COMMISSIONING,MANCHESTER ROAD SURGERY SHEFFIELD,27604235,"3,985.36 "
Department of Health,NHS Sheffield CCG,30/06/2019,C&M-PMS Contract Value,PRC DELEGATED CO-COMMISSIONING,MANOR & PARK GROUP PRACTICE,27607600,"73,563.00 "
Department of Health,NHS Sheffield CCG,30/06/2019,C&M-PMS DES Extended Hours Access,PRC DELEGATED CO-COMMISSIONING,MANOR & PARK GROUP PRACTICE,27607600,"4,320.13 "
Department of Health,NHS Sheffield CCG,30/06/2019,C&M-PMS Out of Hours Opt Outs,PRC DELEGATED CO-COMMISSIONING,MANOR & PARK GROUP PRACTICE,27607600,48.14 
Department of Health,NHS Sheffield CCG,30/06/2019,C&M-PMS PCO Seniority,PRC DELEGATED CO-COMMISSIONING,MANOR & PARK GROUP PRACTICE,27607600,"1,055.97 "
Department of Health,NHS Sheffield CCG,30/06/2019,C&M-PMS Prem Notional Rent,PRC DELEGATED CO-COMMISSIONING,MANOR & PARK GROUP PRACTICE,27607600,"9,050.00 "
Department of Health,NHS Sheffield CCG,30/06/2019,C&M-PMS Prem Rates,PRC DELEGATED CO-COMMISSIONING,MANOR & PARK GROUP PRACTICE,27607600,"1,747.00 "
Department of Health,NHS Sheffield CCG,30/06/2019,C&M-PMS QOF Achievement,PRC DELEGATED CO-COMMISSIONING,MANOR & PARK GROUP PRACTICE,27607600,"35,432.38 "
Department of Health,NHS Sheffield CCG,30/06/2019,C&M-PMS QOF Aspiration,PRC DELEGATED CO-COMMISSIONING,MANOR & PARK GROUP PRACTICE,27607600,"7,420.75 "
Department of Health,NHS Sheffield CCG,30/06/2019,C&M-GMS Cost of Drugs -Prescribing,LOCAL ENHANCED SERVICES,MATHEWS PRACTICE,27827173,234.33 
Department of Health,NHS Sheffield CCG,30/06/2019,C&M-GMS DES Extended Hours Access,PRC DELEGATED CO-COMMISSIONING,MATHEWS PRACTICE,27827173,"3,854.15 "
Department of Health,NHS Sheffield CCG,30/06/2019,C&M-GMS Global Sum,PRC DELEGATED CO-COMMISSIONING,MATHEWS PRACTICE,27827173,"61,008.69 "
Department of Health,NHS Sheffield CCG,30/06/2019,C&M-GMS MPIG Correction Factor,PRC DELEGATED CO-COMMISSIONING,MATHEWS PRACTICE,27827173,299.48 
Department of Health,NHS Sheffield CCG,30/06/2019,C&M-GMS PCO Seniority,PRC DELEGATED CO-COMMISSIONING,MATHEWS PRACTICE,27827173,692.35 
Department of Health,NHS Sheffield CCG,30/06/2019,C&M-GMS Prem Notional Rent,PRC DELEGATED CO-COMMISSIONING,MATHEWS PRACTICE,27827173,"8,660.42 "
Department of Health,NHS Sheffield CCG,30/06/2019,C&M-GMS Prem Rates,PRC DELEGATED CO-COMMISSIONING,MATHEWS PRACTICE,27827173,"2,148.00 "
Department of Health,NHS Sheffield CCG,30/06/2019,C&M-GMS Prof Fees Prescribing,PRC DELEGATED CO-COMMISSIONING,MATHEWS PRACTICE,27827173,120.26 
Department of Health,NHS Sheffield CCG,30/06/2019,C&M-GMS QOF Achievement,PRC DELEGATED CO-COMMISSIONING,MATHEWS PRACTICE,27827173,"24,165.27 "
Department of Health,NHS Sheffield CCG,30/06/2019,C&M-GMS QOF Aspiration,PRC DELEGATED CO-COMMISSIONING,MATHEWS PRACTICE,27827173,"7,156.84 "
Department of Health,NHS Sheffield CCG,30/06/2019,C&M-PMS Contract Value,PRC DELEGATED CO-COMMISSIONING,MEADOWHEAD GROUP PRACTICE,27604233,"74,902.56 "
Department of Health,NHS Sheffield CCG,30/06/2019,C&M-PMS DES Extended Hours Access,PRC DELEGATED CO-COMMISSIONING,MEADOWHEAD GROUP PRACTICE,27604233,"4,451.70 "
Department of Health,NHS Sheffield CCG,30/06/2019,C&M-PMS Out of Hours Opt Outs,PRC DELEGATED CO-COMMISSIONING,MEADOWHEAD GROUP PRACTICE,27604233,20.35 
Department of Health,NHS Sheffield CCG,30/06/2019,C&M-PMS PCO Seniority,PRC DELEGATED CO-COMMISSIONING,MEADOWHEAD GROUP PRACTICE,27604233,"2,895.30 "
Department of Health,NHS Sheffield CCG,30/06/2019,C&M-PMS Prem Cost Rent,PRC DELEGATED CO-COMMISSIONING,MEADOWHEAD GROUP PRACTICE,27604233,"3,647.42 "
Department of Health,NHS Sheffield CCG,30/06/2019,C&M-PMS Prem Notional Rent,PRC DELEGATED CO-COMMISSIONING,MEADOWHEAD GROUP PRACTICE,27604233,"3,358.33 "
Department of Health,NHS Sheffield CCG,30/06/2019,C&M-PMS Prem Rates,PRC DELEGATED CO-COMMISSIONING,MEADOWHEAD GROUP PRACTICE,27604233,"1,870.00 "
Department of Health,NHS Sheffield CCG,30/06/2019,C&M-PMS Prem Water Rates,PRC DELEGATED CO-COMMISSIONING,MEADOWHEAD GROUP PRACTICE,27604233,233.02 
Department of Health,NHS Sheffield CCG,30/06/2019,C&M-PMS QOF Achievement,PRC DELEGATED CO-COMMISSIONING,MEADOWHEAD GROUP PRACTICE,27604233,"38,951.31 "
Department of Health,NHS Sheffield CCG,30/06/2019,C&M-PMS QOF Aspiration,PRC DELEGATED CO-COMMISSIONING,MEADOWHEAD GROUP PRACTICE,27604233,"9,076.52 "
Department of Health,NHS Sheffield CCG,30/06/2019,C&M-GMS Cost of Drugs -Prescribing,LOCAL ENHANCED SERVICES,MEDICAL CENTRE CRYSTAL PEAKS,27827169,"1,436.74 "
Department of Health,NHS Sheffield CCG,30/06/2019,C&M-GMS DES Extended Hours Access,PRC DELEGATED CO-COMMISSIONING,MEDICAL CENTRE CRYSTAL PEAKS,27827169,"3,141.18 "
Department of Health,NHS Sheffield CCG,30/06/2019,C&M-GMS DES Learn Dsblty Hlth Chk,PRC DELEGATED CO-COMMISSIONING,MEDICAL CENTRE CRYSTAL PEAKS,27827169,"1,540.00 "
Department of Health,NHS Sheffield CCG,30/06/2019,C&M-GMS Global Sum,PRC DELEGATED CO-COMMISSIONING,MEDICAL CENTRE CRYSTAL PEAKS,27827169,"46,431.70 "
Department of Health,NHS Sheffield CCG,30/06/2019,C&M-GMS MPIG Correction Factor,PRC DELEGATED CO-COMMISSIONING,MEDICAL CENTRE CRYSTAL PEAKS,27827169,565.67 
Department of Health,NHS Sheffield CCG,30/06/2019,C&M-GMS PCO Other,PRC DELEGATED CO-COMMISSIONING,MEDICAL CENTRE CRYSTAL PEAKS,27827169,426.60 
Department of Health,NHS Sheffield CCG,30/06/2019,C&M-GMS PCO Seniority,PRC DELEGATED CO-COMMISSIONING,MEDICAL CENTRE CRYSTAL PEAKS,27827169,"1,873.23 "
Department of Health,NHS Sheffield CCG,30/06/2019,C&M-GMS Prem Notional Rent,PRC DELEGATED CO-COMMISSIONING,MEDICAL CENTRE CRYSTAL PEAKS,27827169,270.00 
Department of Health,NHS Sheffield CCG,30/06/2019,C&M-GMS Prem Rates,PRC DELEGATED CO-COMMISSIONING,MEDICAL CENTRE CRYSTAL PEAKS,27827169,"1,056.00 "
Department of Health,NHS Sheffield CCG,30/06/2019,C&M-GMS Prof Fees Prescribing,PRC DELEGATED CO-COMMISSIONING,MEDICAL CENTRE CRYSTAL PEAKS,27827169,322.29 
Department of Health,NHS Sheffield CCG,30/06/2019,C&M-GMS QOF Achievement,PRC DELEGATED CO-COMMISSIONING,MEDICAL CENTRE CRYSTAL PEAKS,27827169,"25,313.95 "
Department of Health,NHS Sheffield CCG,30/06/2019,C&M-GMS QOF Aspiration,PRC DELEGATED CO-COMMISSIONING,MEDICAL CENTRE CRYSTAL PEAKS,27827169,"6,211.79 "
Department of Health,NHS Sheffield CCG,30/06/2019,Clinical&Medical-Serv Recd-NHS Trst,BEREAVEMENT SERVICE,MID YORKSHIRE HOSPITALS NHS TRUST,27611685,"175,000.00 "
Department of Health,NHS Sheffield CCG,30/06/2019,Hcare Srv Rec NHS Trust-Contract Baseline,ACUTE COMMISSIONING,MID YORKSHIRE HOSPITALS NHS TRUST,27739812,"(35,443.00)"
Department of Health,NHS Sheffield CCG,30/06/2019,Hcare Srv Rec NHS Trust-Contract Baseline,ACUTE COMMISSIONING,MID YORKSHIRE HOSPITALS NHS TRUST,27868143,"49,763.00 "
Department of Health,NHS Sheffield CCG,30/06/2019,C&M-GMS Cost of Drugs -Prescribing,LOCAL ENHANCED SERVICES,MILL ROAD SURGERY SHEFFIELD,27827176,"1,528.11 "
Department of Health,NHS Sheffield CCG,30/06/2019,C&M-GMS DES Extended Hours Access,PRC DELEGATED CO-COMMISSIONING,MILL ROAD SURGERY SHEFFIELD,27827176,"2,515.60 "
Department of Health,NHS Sheffield CCG,30/06/2019,C&M-GMS Global Sum,PRC DELEGATED CO-COMMISSIONING,MILL ROAD SURGERY SHEFFIELD,27827176,"40,905.77 "
Department of Health,NHS Sheffield CCG,30/06/2019,C&M-GMS MPIG Correction Factor,PRC DELEGATED CO-COMMISSIONING,MILL ROAD SURGERY SHEFFIELD,27827176,61.02 
Department of Health,NHS Sheffield CCG,30/06/2019,C&M-GMS PCO Other,PRC DELEGATED CO-COMMISSIONING,MILL ROAD SURGERY SHEFFIELD,27827176,352.70 
Department of Health,NHS Sheffield CCG,30/06/2019,C&M-GMS PCO Seniority,PRC DELEGATED CO-COMMISSIONING,MILL ROAD SURGERY SHEFFIELD,27827176,349.68 
Department of Health,NHS Sheffield CCG,30/06/2019,C&M-GMS Prem Notional Rent,PRC DELEGATED CO-COMMISSIONING,MILL ROAD SURGERY SHEFFIELD,27827176,"4,593.33 "
Department of Health,NHS Sheffield CCG,30/06/2019,C&M-GMS Prem Rates,PRC DELEGATED CO-COMMISSIONING,MILL ROAD SURGERY SHEFFIELD,27827176,"1,056.00 "
Department of Health,NHS Sheffield CCG,30/06/2019,C&M-GMS Prof Fees Prescribing,PRC DELEGATED CO-COMMISSIONING,MILL ROAD SURGERY SHEFFIELD,27827176,110.65 
Department of Health,NHS Sheffield CCG,30/06/2019,C&M-GMS QOF Achievement,PRC DELEGATED CO-COMMISSIONING,MILL ROAD SURGERY SHEFFIELD,27827176,"23,767.32 "
Department of Health,NHS Sheffield CCG,30/06/2019,C&M-GMS QOF Aspiration,PRC DELEGATED CO-COMMISSIONING,MILL ROAD SURGERY SHEFFIELD,27827176,"5,088.50 "
Department of Health,NHS Sheffield CCG,30/06/2019,Clinical&Medical-Independent Sector,Mental Health Services - S117 Mental Health,MOORVILLE RESIDENTIAL,27574926,"7,862.23 "
Department of Health,NHS Sheffield CCG,30/06/2019,Cont Care-Learning Disab(<65),CHC ADULT FULLY FUNDED,MOORVILLE RESIDENTIAL,27574926,"19,359.72 "
Department of Health,NHS Sheffield CCG,30/06/2019,Cont Care-Learning Disab(<65),CHC ADULT JOINT FUNDED,MOORVILLE RESIDENTIAL,27574926,"1,173.60 "
Department of Health,NHS Sheffield CCG,30/06/2019,Cont Care-Mental Health (<65),CHC ADULT JOINT FUNDED,MOORVILLE RESIDENTIAL,27574926,475.72 
Department of Health,NHS Sheffield CCG,30/06/2019,C&M-PMS Contract Value,PRC DELEGATED CO-COMMISSIONING,MOSBOROUGH HEALTH CENTRE,27604237,"49,786.93 "
Department of Health,NHS Sheffield CCG,30/06/2019,C&M-PMS DES Extended Hours Access,PRC DELEGATED CO-COMMISSIONING,MOSBOROUGH HEALTH CENTRE,27604237,"3,202.45 "
Department of Health,NHS Sheffield CCG,30/06/2019,C&M-PMS PCO Other,PRC DELEGATED CO-COMMISSIONING,MOSBOROUGH HEALTH CENTRE,27604237,"1,296.60 "
Department of Health,NHS Sheffield CCG,30/06/2019,C&M-PMS PCO Seniority,PRC DELEGATED CO-COMMISSIONING,MOSBOROUGH HEALTH CENTRE,27604237,"1,382.10 "
Department of Health,NHS Sheffield CCG,30/06/2019,C&M-PMS Prem Notional Rent,PRC DELEGATED CO-COMMISSIONING,MOSBOROUGH HEALTH CENTRE,27604237,"4,091.67 "
Department of Health,NHS Sheffield CCG,30/06/2019,C&M-PMS Prem Rates,PRC DELEGATED CO-COMMISSIONING,MOSBOROUGH HEALTH CENTRE,27604237,"1,105.00 "
Department of Health,NHS Sheffield CCG,30/06/2019,C&M-PMS QOF Achievement,PRC DELEGATED CO-COMMISSIONING,MOSBOROUGH HEALTH CENTRE,27604237,"24,733.23 "
Department of Health,NHS Sheffield CCG,30/06/2019,C&M-PMS QOF Aspiration,PRC DELEGATED CO-COMMISSIONING,MOSBOROUGH HEALTH CENTRE,27604237,"5,736.56 "
Department of Health,NHS Sheffield CCG,30/06/2019,C&M-PMS Contract Value,PRC DELEGATED CO-COMMISSIONING,NETHERGREEN SURGERY,27604239,"64,519.59 "
Department of Health,NHS Sheffield CCG,30/06/2019,C&M-PMS DES Extended Hours Access,PRC DELEGATED CO-COMMISSIONING,NETHERGREEN SURGERY,27604239,"4,431.28 "
Department of Health,NHS Sheffield CCG,30/06/2019,C&M-PMS PCO Other,PRC DELEGATED CO-COMMISSIONING,NETHERGREEN SURGERY,27604239,"5,832.00 "
Department of Health,NHS Sheffield CCG,30/06/2019,C&M-PMS PCO Seniority,PRC DELEGATED CO-COMMISSIONING,NETHERGREEN SURGERY,27604239,"2,770.19 "
Department of Health,NHS Sheffield CCG,30/06/2019,C&M-PMS Prem Cost Rent,PRC DELEGATED CO-COMMISSIONING,NETHERGREEN SURGERY,27604239,"5,057.33 "
Department of Health,NHS Sheffield CCG,30/06/2019,C&M-PMS Prem Rates,PRC DELEGATED CO-COMMISSIONING,NETHERGREEN SURGERY,27604239,"1,264.00 "
Department of Health,NHS Sheffield CCG,30/06/2019,C&M-PMS QOF Achievement,PRC DELEGATED CO-COMMISSIONING,NETHERGREEN SURGERY,27604239,"29,661.20 "
Department of Health,NHS Sheffield CCG,30/06/2019,C&M-PMS QOF Aspiration,PRC DELEGATED CO-COMMISSIONING,NETHERGREEN SURGERY,27604239,"6,406.79 "
Department of Health,NHS Sheffield CCG,30/06/2019,Charges from CSU,BUSINESS INFORMATICS,NHS NORTH OF ENGLAND CSU,27739826,"27,376.00 "
Department of Health,NHS Sheffield CCG,30/06/2019,C&M-GMS Cost of Drugs -Prescribing,LOCAL ENHANCED SERVICES,NORFOLK PARK HEALTH CENTRE,27827181,"1,101.40 "
Department of Health,NHS Sheffield CCG,30/06/2019,C&M-GMS Global Sum,PRC DELEGATED CO-COMMISSIONING,NORFOLK PARK HEALTH CENTRE,27827181,"38,820.25 "
Department of Health,NHS Sheffield CCG,30/06/2019,C&M-GMS MPIG Correction Factor,PRC DELEGATED CO-COMMISSIONING,NORFOLK PARK HEALTH CENTRE,27827181,462.30 
Department of Health,NHS Sheffield CCG,30/06/2019,C&M-GMS PCO Other,PRC DELEGATED CO-COMMISSIONING,NORFOLK PARK HEALTH CENTRE,27827181,"3,123.00 "
Department of Health,NHS Sheffield CCG,30/06/2019,C&M-GMS PCO Seniority,PRC DELEGATED CO-COMMISSIONING,NORFOLK PARK HEALTH CENTRE,27827181,"1,948.63 "
Department of Health,NHS Sheffield CCG,30/06/2019,C&M-GMS Prem Healthcentre Rent,PRC DELEGATED CO-COMMISSIONING,NORFOLK PARK HEALTH CENTRE,27827181,"24,820.01 "
Department of Health,NHS Sheffield CCG,30/06/2019,C&M-GMS Prof Fees Prescribing,PRC DELEGATED CO-COMMISSIONING,NORFOLK PARK HEALTH CENTRE,27827181,120.25 
Department of Health,NHS Sheffield CCG,30/06/2019,C&M-GMS QOF Achievement,PRC DELEGATED CO-COMMISSIONING,NORFOLK PARK HEALTH CENTRE,27827181,"18,785.38 "
Department of Health,NHS Sheffield CCG,30/06/2019,C&M-GMS QOF Aspiration,PRC DELEGATED CO-COMMISSIONING,NORFOLK PARK HEALTH CENTRE,27827181,"3,941.29 "
Department of Health,NHS Sheffield CCG,30/06/2019,C&M-GMS Cost of Drugs -Prescribing,LOCAL ENHANCED SERVICES,NORWOOD MEDICAL CENTRE SHEFFIELD,27827184,306.88 
Department of Health,NHS Sheffield CCG,30/06/2019,C&M-GMS DES Extended Hours Access,PRC DELEGATED CO-COMMISSIONING,NORWOOD MEDICAL CENTRE SHEFFIELD,27827184,"3,847.50 "
Department of Health,NHS Sheffield CCG,30/06/2019,C&M-GMS Global Sum,PRC DELEGATED CO-COMMISSIONING,NORWOOD MEDICAL CENTRE SHEFFIELD,27827184,"65,518.07 "
Department of Health,NHS Sheffield CCG,30/06/2019,C&M-GMS PCO Seniority,PRC DELEGATED CO-COMMISSIONING,NORWOOD MEDICAL CENTRE SHEFFIELD,27827184,"2,104.68 "
Department of Health,NHS Sheffield CCG,30/06/2019,C&M-GMS Prem Notional Rent,PRC DELEGATED CO-COMMISSIONING,NORWOOD MEDICAL CENTRE SHEFFIELD,27827184,"5,187.50 "
Department of Health,NHS Sheffield CCG,30/06/2019,C&M-GMS Prem Rates,PRC DELEGATED CO-COMMISSIONING,NORWOOD MEDICAL CENTRE SHEFFIELD,27827184,"1,279.00 "
Department of Health,NHS Sheffield CCG,30/06/2019,C&M-GMS Prof Fees Prescribing,PRC DELEGATED CO-COMMISSIONING,NORWOOD MEDICAL CENTRE SHEFFIELD,27827184,93.81 
Department of Health,NHS Sheffield CCG,30/06/2019,C&M-GMS QOF Achievement,PRC DELEGATED CO-COMMISSIONING,NORWOOD MEDICAL CENTRE SHEFFIELD,27827184,"33,545.59 "
Department of Health,NHS Sheffield CCG,30/06/2019,C&M-GMS QOF Aspiration,PRC DELEGATED CO-COMMISSIONING,NORWOOD MEDICAL CENTRE SHEFFIELD,27827184,"8,171.17 "
Department of Health,NHS Sheffield CCG,30/06/2019,Hcare Srv Rec NHS Trust-Contract Baseline,ACUTE COMMISSIONING,NOTTINGHAM UNIVERSITY HOSPITALS NHS TRUST,27672363,"28,040.00 "
Department of Health,NHS Sheffield CCG,30/06/2019,Hcare Srv Rec NHS Trust-Contract Baseline,ACUTE COMMISSIONING,NOTTINGHAM UNIVERSITY HOSPITALS NHS TRUST,27672370,"28,040.00 "
Department of Health,NHS Sheffield CCG,30/06/2019,C&M-GMS Cost of Drugs -Dispensing,LOCAL ENHANCED SERVICES,OUGHTIBRIDGE SURGERY,27827188,"28,213.84 "
Department of Health,NHS Sheffield CCG,30/06/2019,C&M-GMS Global Sum,PRC DELEGATED CO-COMMISSIONING,OUGHTIBRIDGE SURGERY,27827188,"43,012.45 "
Department of Health,NHS Sheffield CCG,30/06/2019,C&M-GMS PCO Seniority,PRC DELEGATED CO-COMMISSIONING,OUGHTIBRIDGE SURGERY,27827188,994.97 
Department of Health,NHS Sheffield CCG,30/06/2019,C&M-GMS Prem Notional Rent,PRC DELEGATED CO-COMMISSIONING,OUGHTIBRIDGE SURGERY,27827188,"3,957.33 "
Department of Health,NHS Sheffield CCG,30/06/2019,C&M-GMS Prem Rates,PRC DELEGATED CO-COMMISSIONING,OUGHTIBRIDGE SURGERY,27827188,895.00 
Department of Health,NHS Sheffield CCG,30/06/2019,C&M-GMS Prof Fees Dispensing,PRC DELEGATED CO-COMMISSIONING,OUGHTIBRIDGE SURGERY,27827188,"4,733.39 "
Department of Health,NHS Sheffield CCG,30/06/2019,C&M-GMS PrscrptnChrgsColl&RmttdbyGP,LOCAL ENHANCED SERVICES,OUGHTIBRIDGE SURGERY,27827188,609.60 
Department of Health,NHS Sheffield CCG,30/06/2019,C&M-GMS QOF Achievement,PRC DELEGATED CO-COMMISSIONING,OUGHTIBRIDGE SURGERY,27827188,"16,296.78 "
Department of Health,NHS Sheffield CCG,30/06/2019,C&M-GMS QOF Aspiration,PRC DELEGATED CO-COMMISSIONING,OUGHTIBRIDGE SURGERY,27827188,"4,261.60 "
Department of Health,NHS Sheffield CCG,30/06/2019,C&M-PMS Contract Value,PRC DELEGATED CO-COMMISSIONING,OWLTHORPE MEDICAL CENTRE,27604241,"33,625.55 "
Department of Health,NHS Sheffield CCG,30/06/2019,C&M-PMS DES Extended Hours Access,PRC DELEGATED CO-COMMISSIONING,OWLTHORPE MEDICAL CENTRE,27604241,"2,137.03 "
Department of Health,NHS Sheffield CCG,30/06/2019,C&M-PMS Out of Hours Opt Outs,PRC DELEGATED CO-COMMISSIONING,OWLTHORPE MEDICAL CENTRE,27604241,7.13 
Department of Health,NHS Sheffield CCG,30/06/2019,C&M-PMS Prem Actual Rent,PRC DELEGATED CO-COMMISSIONING,OWLTHORPE MEDICAL CENTRE,27604241,"7,539.58 "
Department of Health,NHS Sheffield CCG,30/06/2019,C&M-PMS Prem Rates,PRC DELEGATED CO-COMMISSIONING,OWLTHORPE MEDICAL CENTRE,27604241,"3,950.58 "
Department of Health,NHS Sheffield CCG,30/06/2019,C&M-PMS QOF Achievement,PRC DELEGATED CO-COMMISSIONING,OWLTHORPE MEDICAL CENTRE,27604241,"15,138.70 "
Department of Health,NHS Sheffield CCG,30/06/2019,C&M-PMS QOF Aspiration,PRC DELEGATED CO-COMMISSIONING,OWLTHORPE MEDICAL CENTRE,27604241,"3,873.48 "
Department of Health,NHS Sheffield CCG,30/06/2019,C&M-PMS Contract Value,PRC DELEGATED CO-COMMISSIONING,PAGE HALL MEDICAL CENTRE,27604243,"57,651.56 "
Department of Health,NHS Sheffield CCG,30/06/2019,C&M-PMS DES Extended Hours Access,PRC DELEGATED CO-COMMISSIONING,PAGE HALL MEDICAL CENTRE,27604243,"3,704.05 "
Department of Health,NHS Sheffield CCG,30/06/2019,C&M-PMS DES Learn Dsblty Hlth Chk,PRC DELEGATED CO-COMMISSIONING,PAGE HALL MEDICAL CENTRE,27604243,"1,960.00 "
Department of Health,NHS Sheffield CCG,30/06/2019,C&M-PMS Out of Hours Opt Outs,PRC DELEGATED CO-COMMISSIONING,PAGE HALL MEDICAL CENTRE,27604243,10.75 
Department of Health,NHS Sheffield CCG,30/06/2019,C&M-PMS PCO Seniority,PRC DELEGATED CO-COMMISSIONING,PAGE HALL MEDICAL CENTRE,27604243,"1,348.08 "
Department of Health,NHS Sheffield CCG,30/06/2019,C&M-PMS Prem Notional Rent,PRC DELEGATED CO-COMMISSIONING,PAGE HALL MEDICAL CENTRE,27604243,"4,833.33 "
Department of Health,NHS Sheffield CCG,30/06/2019,C&M-PMS Prem Rates,PRC DELEGATED CO-COMMISSIONING,PAGE HALL MEDICAL CENTRE,27604243,"1,077.00 "
Department of Health,NHS Sheffield CCG,30/06/2019,C&M-PMS QOF Achievement,PRC DELEGATED CO-COMMISSIONING,PAGE HALL MEDICAL CENTRE,27604243,"15,732.18 "
Department of Health,NHS Sheffield CCG,30/06/2019,C&M-PMS QOF Aspiration,PRC DELEGATED CO-COMMISSIONING,PAGE HALL MEDICAL CENTRE,27604243,"4,558.05 "
Department of Health,NHS Sheffield CCG,30/06/2019,C&M-PMS Contract Value,PRC DELEGATED CO-COMMISSIONING,PORTER BROOK MEDICAL CENTRE,27604244,"(1,045.83)"
Department of Health,NHS Sheffield CCG,30/06/2019,C&M-PMS GP Statutory Levy,PRC DELEGATED CO-COMMISSIONING,PORTER BROOK MEDICAL CENTRE,27604244,(875.16)
Department of Health,NHS Sheffield CCG,30/06/2019,C&M-PMS Out of Hours Opt Outs,PRC DELEGATED CO-COMMISSIONING,PORTER BROOK MEDICAL CENTRE,27604244,"(7,778.42)"
Department of Health,NHS Sheffield CCG,30/06/2019,C&M-PMS Voluntary Levy,PRC DELEGATED CO-COMMISSIONING,PORTER BROOK MEDICAL CENTRE,27604244,(145.86)
Department of Health,NHS Sheffield CCG,30/06/2019,C&M-PMS Contract Value,PRC DELEGATED CO-COMMISSIONING,PORTER BROOK MEDICAL CENTRE,27604245,"168,693.94 "
Department of Health,NHS Sheffield CCG,30/06/2019,C&M-PMS DES Extended Hours Access,PRC DELEGATED CO-COMMISSIONING,PORTER BROOK MEDICAL CENTRE,27604245,"13,856.70 "
Department of Health,NHS Sheffield CCG,30/06/2019,C&M-PMS Out of Hours Opt Outs,PRC DELEGATED CO-COMMISSIONING,PORTER BROOK MEDICAL CENTRE,27604245,49.05 
Department of Health,NHS Sheffield CCG,30/06/2019,C&M-PMS PCO Seniority,PRC DELEGATED CO-COMMISSIONING,PORTER BROOK MEDICAL CENTRE,27604245,"5,457.61 "
Department of Health,NHS Sheffield CCG,30/06/2019,C&M-PMS Prem Actual Rent,PRC DELEGATED CO-COMMISSIONING,PORTER BROOK MEDICAL CENTRE,27604245,"1,333.33 "
Department of Health,NHS Sheffield CCG,30/06/2019,C&M-PMS Prem Notional Rent,PRC DELEGATED CO-COMMISSIONING,PORTER BROOK MEDICAL CENTRE,27604245,"9,666.67 "
Department of Health,NHS Sheffield CCG,30/06/2019,C&M-PMS Prem Rates,PRC DELEGATED CO-COMMISSIONING,PORTER BROOK MEDICAL CENTRE,27604245,"2,271.00 "
Department of Health,NHS Sheffield CCG,30/06/2019,C&M-PMS QOF Achievement,PRC DELEGATED CO-COMMISSIONING,PORTER BROOK MEDICAL CENTRE,27604245,"41,925.51 "
Department of Health,NHS Sheffield CCG,30/06/2019,C&M-PMS QOF Aspiration,PRC DELEGATED CO-COMMISSIONING,PORTER BROOK MEDICAL CENTRE,27604245,"8,838.31 "
Department of Health,NHS Sheffield CCG,30/06/2019,C&M-OES Childrens Schemes,LOCAL ENHANCED SERVICES,PRIMARY EYECARE SERVICES LTD,27889799,"1,675.00 "
Department of Health,NHS Sheffield CCG,30/06/2019,C&M-OES Glaucoma,LOCAL ENHANCED SERVICES,PRIMARY EYECARE SERVICES LTD,27889799,"1,030.00 "
Department of Health,NHS Sheffield CCG,30/06/2019,C&M-OES Intra-ocular Ocular Hypertn,LOCAL ENHANCED SERVICES,PRIMARY EYECARE SERVICES LTD,27889799,380.00 
Department of Health,NHS Sheffield CCG,30/06/2019,C&M-OES PEARS,LOCAL ENHANCED SERVICES,PRIMARY EYECARE SERVICES LTD,27889799,"26,909.00 "
Department of Health,NHS Sheffield CCG,30/06/2019,C&M-OES Childrens Schemes,LOCAL ENHANCED SERVICES,PRIMARY EYECARE SERVICES LTD,27889816,"1,425.00 "
Department of Health,NHS Sheffield CCG,30/06/2019,C&M-OES Glaucoma,LOCAL ENHANCED SERVICES,PRIMARY EYECARE SERVICES LTD,27889816,635.00 
Department of Health,NHS Sheffield CCG,30/06/2019,C&M-OES Intra-ocular Ocular Hypertn,LOCAL ENHANCED SERVICES,PRIMARY EYECARE SERVICES LTD,27889816,600.00 
Department of Health,NHS Sheffield CCG,30/06/2019,C&M-OES PEARS,LOCAL ENHANCED SERVICES,PRIMARY EYECARE SERVICES LTD,27889816,"26,563.50 "
Department of Health,NHS Sheffield CCG,30/06/2019,Cont Care-Physical Disab (<65),CHC ADULT FULLY FUNDED,PRIORY GROUP LTD,27653763,"25,941.13 "
Department of Health,NHS Sheffield CCG,30/06/2019,C&M-PMS Contract Value,PRC DELEGATED CO-COMMISSIONING,RICHMOND MEDICAL CENTRE,27604247,"67,437.18 "
Department of Health,NHS Sheffield CCG,30/06/2019,C&M-PMS DES Extended Hours Access,PRC DELEGATED CO-COMMISSIONING,RICHMOND MEDICAL CENTRE,27604247,"4,272.15 "
Department of Health,NHS Sheffield CCG,30/06/2019,C&M-PMS PCO Other,PRC DELEGATED CO-COMMISSIONING,RICHMOND MEDICAL CENTRE,27604247,561.50 
Department of Health,NHS Sheffield CCG,30/06/2019,C&M-PMS PCO Seniority,PRC DELEGATED CO-COMMISSIONING,RICHMOND MEDICAL CENTRE,27604247,"1,597.65 "
Department of Health,NHS Sheffield CCG,30/06/2019,C&M-PMS Prem Notional Rent,PRC DELEGATED CO-COMMISSIONING,RICHMOND MEDICAL CENTRE,27604247,"4,731.00 "
Department of Health,NHS Sheffield CCG,30/06/2019,C&M-PMS Prem Rates,PRC DELEGATED CO-COMMISSIONING,RICHMOND MEDICAL CENTRE,27604247,"1,259.00 "
Department of Health,NHS Sheffield CCG,30/06/2019,C&M-PMS QOF Achievement,PRC DELEGATED CO-COMMISSIONING,RICHMOND MEDICAL CENTRE,27604247,"36,094.45 "
Department of Health,NHS Sheffield CCG,30/06/2019,C&M-PMS QOF Aspiration,PRC DELEGATED CO-COMMISSIONING,RICHMOND MEDICAL CENTRE,27604247,"8,208.20 "
Department of Health,NHS Sheffield CCG,30/06/2019,Cont Care-Physical Disab (<65),CHC ADULT FULLY FUNDED,ROSEBERRY CARE CENTRES,27653761,"45,102.61 "
Department of Health,NHS Sheffield CCG,30/06/2019,Cont Care-Funded Nursing Care Allow,FUNDED NURSING CARE,ROSEBERRY CARE CENTRES,27653879,"35,016.89 "
Department of Health,NHS Sheffield CCG,30/06/2019,Cont Care-Physical Disab (<65),CHC ADULT FULLY FUNDED,ROSEBERRY CARE CENTRES,27653900,"33,065.20 "
Department of Health,NHS Sheffield CCG,30/06/2019,Hcare Srv Rec Fdtn Trust-Contract Baseline,MENTAL HEALTH CONTRACTS,ROTHERHAM DONCASTER AND SOUTH HUMBER NHS FOUNDATION TRUST,27672469,"25,487.95 "
Department of Health,NHS Sheffield CCG,30/06/2019,Hcare Srv Rec Fdtn Trust-Contract Baseline,ACUTE COMMISSIONING,ROTHERHAM NHS FOUNDATION TRUST,27611635,"466,729.00 "
Department of Health,NHS Sheffield CCG,30/06/2019,C&M-PMS Contract Value,PRC DELEGATED CO-COMMISSIONING,RUSTLINGS ROAD MEDICAL CENTRE,27604251,"28,245.05 "
Department of Health,NHS Sheffield CCG,30/06/2019,C&M-PMS PCO Other,PRC DELEGATED CO-COMMISSIONING,RUSTLINGS ROAD MEDICAL CENTRE,27604251,313.80 
Department of Health,NHS Sheffield CCG,30/06/2019,C&M-PMS PCO Seniority,PRC DELEGATED CO-COMMISSIONING,RUSTLINGS ROAD MEDICAL CENTRE,27604251,"1,279.08 "
Department of Health,NHS Sheffield CCG,30/06/2019,C&M-PMS Prem Notional Rent,PRC DELEGATED CO-COMMISSIONING,RUSTLINGS ROAD MEDICAL CENTRE,27604251,"1,312.50 "
Department of Health,NHS Sheffield CCG,30/06/2019,C&M-PMS QOF Achievement,PRC DELEGATED CO-COMMISSIONING,RUSTLINGS ROAD MEDICAL CENTRE,27604251,"14,758.40 "
Department of Health,NHS Sheffield CCG,30/06/2019,C&M-PMS QOF Aspiration,PRC DELEGATED CO-COMMISSIONING,RUSTLINGS ROAD MEDICAL CENTRE,27604251,"2,653.37 "
Department of Health,NHS Sheffield CCG,30/06/2019,Cont Care-Funded Nursing Care Allow,FUNDED NURSING CARE,SCARSDALE GRANGE NURSING HOME,27653753,"25,015.06 "
Department of Health,NHS Sheffield CCG,30/06/2019,Cont Care-Physical Disab (<65),CHC ADULT FULLY FUNDED,SCARSDALE GRANGE NURSING HOME,27653792,"25,002.81 "
Department of Health,NHS Sheffield CCG,30/06/2019,C&M-PMS Contract Value,PRC DELEGATED CO-COMMISSIONING,SELBORNE ROAD MEDICAL CENTRE,27604249,"19,775.55 "
Department of Health,NHS Sheffield CCG,30/06/2019,C&M-PMS Out of Hours Opt Outs,PRC DELEGATED CO-COMMISSIONING,SELBORNE ROAD MEDICAL CENTRE,27604249,13.14 
Department of Health,NHS Sheffield CCG,30/06/2019,C&M-PMS Prem Notional Rent,PRC DELEGATED CO-COMMISSIONING,SELBORNE ROAD MEDICAL CENTRE,27604249,"1,735.42 "
Department of Health,NHS Sheffield CCG,30/06/2019,C&M-PMS QOF Achievement,PRC DELEGATED CO-COMMISSIONING,SELBORNE ROAD MEDICAL CENTRE,27604249,"8,132.06 "
Department of Health,NHS Sheffield CCG,30/06/2019,C&M-PMS QOF Aspiration,PRC DELEGATED CO-COMMISSIONING,SELBORNE ROAD MEDICAL CENTRE,27604249,"1,995.11 "
Department of Health,NHS Sheffield CCG,30/06/2019,Cont Care-Physical Disab (<65),CHC ADULT FULLY FUNDED,SEVEN HILLS NURSING HOME,27653793,"28,810.74 "
Department of Health,NHS Sheffield CCG,30/06/2019,C&M-GMS Cost of Drugs -Prescribing,LOCAL ENHANCED SERVICES,SHARROW LANE MEDICAL CENTRE,27827192,227.08 
Department of Health,NHS Sheffield CCG,30/06/2019,C&M-GMS DES Extended Hours Access,PRC DELEGATED CO-COMMISSIONING,SHARROW LANE MEDICAL CENTRE,27827192,"1,881.95 "
Department of Health,NHS Sheffield CCG,30/06/2019,C&M-GMS Global Sum,PRC DELEGATED CO-COMMISSIONING,SHARROW LANE MEDICAL CENTRE,27827192,"23,612.32 "
Department of Health,NHS Sheffield CCG,30/06/2019,C&M-GMS MPIG Correction Factor,PRC DELEGATED CO-COMMISSIONING,SHARROW LANE MEDICAL CENTRE,27827192,980.16 
Department of Health,NHS Sheffield CCG,30/06/2019,C&M-GMS PCO Other,PRC DELEGATED CO-COMMISSIONING,SHARROW LANE MEDICAL CENTRE,27827192,274.00 
Department of Health,NHS Sheffield CCG,30/06/2019,C&M-GMS PCO Seniority,PRC DELEGATED CO-COMMISSIONING,SHARROW LANE MEDICAL CENTRE,27827192,306.35 
Department of Health,NHS Sheffield CCG,30/06/2019,C&M-GMS Prem Notional Rent,PRC DELEGATED CO-COMMISSIONING,SHARROW LANE MEDICAL CENTRE,27827192,"2,741.67 "
Department of Health,NHS Sheffield CCG,30/06/2019,C&M-GMS Prem Rates,PRC DELEGATED CO-COMMISSIONING,SHARROW LANE MEDICAL CENTRE,27827192,581.00 
Department of Health,NHS Sheffield CCG,30/06/2019,C&M-GMS Prof Fees Prescribing,PRC DELEGATED CO-COMMISSIONING,SHARROW LANE MEDICAL CENTRE,27827192,43.29 
Department of Health,NHS Sheffield CCG,30/06/2019,C&M-GMS QOF Achievement,PRC DELEGATED CO-COMMISSIONING,SHARROW LANE MEDICAL CENTRE,27827192,"13,398.17 "
Department of Health,NHS Sheffield CCG,30/06/2019,C&M-GMS QOF Aspiration,PRC DELEGATED CO-COMMISSIONING,SHARROW LANE MEDICAL CENTRE,27827192,"2,666.85 "
Department of Health,NHS Sheffield CCG,30/06/2019,Clinical&Medical-Voluntary Sector,COMMUNITY SERVICES,SHEFFIELD CARERS CENTRE,27524368,"45,000.00 "
Department of Health,NHS Sheffield CCG,30/06/2019,Hcare Srv Rec Fdtn Trust-Contract Baseline,ACUTE CHILDRENS SERVICES,SHEFFIELD CHILDRENS NHS FOUNDATION TRUST,27524276,"235,254.30 "
Department of Health,NHS Sheffield CCG,30/06/2019,Hcare Srv Rec Fdtn Trust-Contract Baseline,ACUTE CHILDRENS SERVICES,SHEFFIELD CHILDRENS NHS FOUNDATION TRUST,27721274,"3,422,320.00 "
Department of Health,NHS Sheffield CCG,30/06/2019,Clinical&Medical-Othe Public Sector,COMMUNITY SERVICES,SHEFFIELD CITY COUNCIL,27611710,"21,831.00 "
Department of Health,NHS Sheffield CCG,30/06/2019,Clinical&Medical-Othe Public Sector,MENTAL HEALTH SERVICES - COLLABORATIVE COMMISSIONING,SHEFFIELD CITY COUNCIL,27611710,"222,669.00 "
Department of Health,NHS Sheffield CCG,30/06/2019,Clinical&Medical-Othe Public Sector,REABLEMENT,SHEFFIELD CITY COUNCIL,27611710,"150,417.00 "
Department of Health,NHS Sheffield CCG,30/06/2019,Clinical&Medical-Othe Public Sector,SAFEGUARDING,SHEFFIELD CITY COUNCIL,27611710,"12,235.00 "
Department of Health,NHS Sheffield CCG,30/06/2019,Cont Care-Physical Disab (65+),CHC ADULT FULLY FUNDED,SHEFFIELD CITY COUNCIL,27611710,"42,499.42 "
Department of Health,NHS Sheffield CCG,30/06/2019,Soc Care-Joint H&C Teams/Working,INTERMEDIATE CARE,SHEFFIELD CITY COUNCIL,27611710,"151,448.00 "
Department of Health,NHS Sheffield CCG,30/06/2019,Soc Care-Other Soc Care,COMMISSIONING - NON ACUTE,SHEFFIELD CITY COUNCIL,27611710,"1,467,750.00 "
Department of Health,NHS Sheffield CCG,30/06/2019,Soc Care-Support Prim Care,COMMUNITY SERVICES,SHEFFIELD CITY COUNCIL,27611710,"62,500.00 "
Department of Health,NHS Sheffield CCG,30/06/2019,Cont Care- Children,CHC CHILDREN,SHEFFIELD CITY COUNCIL,27765098,"51,407.80 "
Department of Health,NHS Sheffield CCG,30/06/2019,Cont Care-Physical Disab (65+),CHC ADULT FULLY FUNDED,SHEFFIELD CITY COUNCIL,27765106,"780,398.68 "
Department of Health,NHS Sheffield CCG,30/06/2019,Cont Care- Prior Year Payments,CHC ADULT FULLY FUNDED,SHEFFIELD CITY COUNCIL,27765113,"106,083.39 "
Department of Health,NHS Sheffield CCG,30/06/2019,Clinical&Medical-Voluntary Sector,CHILD AND ADOLESCENT MENTAL HEALTH,SHEFFIELD FUTURES,27765116,"64,000.00 "
Department of Health,NHS Sheffield CCG,30/06/2019,Hcare Srv Rec Fdtn Trust-Contract Baseline,MENTAL HEALTH CONTRACTS,SHEFFIELD HEALTH & SOCIAL CARE NHS FOUNDATION TRUST,27868255,"6,833,545.75 "
Department of Health,NHS Sheffield CCG,30/06/2019,C&M-PMS Contract Value,PRC DELEGATED CO-COMMISSIONING,SHEFFIELD MEDICAL CENTRE,27604259,"14,881.03 "
Department of Health,NHS Sheffield CCG,30/06/2019,C&M-PMS PCO Other,PRC DELEGATED CO-COMMISSIONING,SHEFFIELD MEDICAL CENTRE,27604259,147.10 
Department of Health,NHS Sheffield CCG,30/06/2019,C&M-PMS PCO Seniority,PRC DELEGATED CO-COMMISSIONING,SHEFFIELD MEDICAL CENTRE,27604259,391.57 
Department of Health,NHS Sheffield CCG,30/06/2019,C&M-PMS Prem Notional Rent,PRC DELEGATED CO-COMMISSIONING,SHEFFIELD MEDICAL CENTRE,27604259,"2,162.50 "
Department of Health,NHS Sheffield CCG,30/06/2019,C&M-PMS Prem Rates,PRC DELEGATED CO-COMMISSIONING,SHEFFIELD MEDICAL CENTRE,27604259,375.00 
Department of Health,NHS Sheffield CCG,30/06/2019,C&M-PMS QOF Achievement,PRC DELEGATED CO-COMMISSIONING,SHEFFIELD MEDICAL CENTRE,27604259,"8,101.48 "
Department of Health,NHS Sheffield CCG,30/06/2019,C&M-PMS QOF Aspiration,PRC DELEGATED CO-COMMISSIONING,SHEFFIELD MEDICAL CENTRE,27604259,"1,388.25 "
Department of Health,NHS Sheffield CCG,30/06/2019,Hcare Srv Rec Fdtn Trust-Contract Baseline,ACUTE COMMISSIONING,SHEFFIELD TEACHING HOSPITALS NHS FOUNDATION TRUST,27868500,"192,715.00 "
Department of Health,NHS Sheffield CCG,30/06/2019,Hcare Srv Rec Fdtn Trust-Contract Baseline,ACUTE COMMISSIONING,SHEFFIELD TEACHING HOSPITALS NHS FOUNDATION TRUST,27868517,"30,408,062.00 "
Department of Health,NHS Sheffield CCG,30/06/2019,Hcare Srv Rec Fdtn Trust-Contract Baseline,ACUTE COMMISSIONING,SHEFFIELD TEACHING HOSPITALS NHS FOUNDATION TRUST,27868522,"1,367,220.00 "
Department of Health,NHS Sheffield CCG,30/06/2019,Hcare Srv Rec Fdtn Trust-Contract Baseline,ACUTE COMMISSIONING,SHEFFIELD TEACHING HOSPITALS NHS FOUNDATION TRUST,27868528,"3,898,717.00 "
Department of Health,NHS Sheffield CCG,30/06/2019,C&M-GMS Cost of Drugs -Prescribing,LOCAL ENHANCED SERVICES,SHIREGREEN MEDICAL CENTRE,27827200,"1,211.88 "
Department of Health,NHS Sheffield CCG,30/06/2019,C&M-GMS DES Extended Hours Access,PRC DELEGATED CO-COMMISSIONING,SHIREGREEN MEDICAL CENTRE,27827200,"3,728.28 "
Department of Health,NHS Sheffield CCG,30/06/2019,C&M-GMS Global Sum,PRC DELEGATED CO-COMMISSIONING,SHIREGREEN MEDICAL CENTRE,27827200,"58,880.51 "
Department of Health,NHS Sheffield CCG,30/06/2019,C&M-GMS MPIG Correction Factor,PRC DELEGATED CO-COMMISSIONING,SHIREGREEN MEDICAL CENTRE,27827200,226.84 
Department of Health,NHS Sheffield CCG,30/06/2019,C&M-GMS PCO Seniority,PRC DELEGATED CO-COMMISSIONING,SHIREGREEN MEDICAL CENTRE,27827200,"1,102.01 "
Department of Health,NHS Sheffield CCG,30/06/2019,C&M-GMS Prem Cost Rent,PRC DELEGATED CO-COMMISSIONING,SHIREGREEN MEDICAL CENTRE,27827200,"1,792.33 "
Department of Health,NHS Sheffield CCG,30/06/2019,C&M-GMS Prem Notional Rent,PRC DELEGATED CO-COMMISSIONING,SHIREGREEN MEDICAL CENTRE,27827200,"5,375.00 "
Department of Health,NHS Sheffield CCG,30/06/2019,C&M-GMS Prem Rates,PRC DELEGATED CO-COMMISSIONING,SHIREGREEN MEDICAL CENTRE,27827200,"1,922.00 "
Department of Health,NHS Sheffield CCG,30/06/2019,C&M-GMS Prof Fees Prescribing,PRC DELEGATED CO-COMMISSIONING,SHIREGREEN MEDICAL CENTRE,27827200,202.03 
Department of Health,NHS Sheffield CCG,30/06/2019,C&M-GMS QOF Achievement,PRC DELEGATED CO-COMMISSIONING,SHIREGREEN MEDICAL CENTRE,27827200,"30,932.64 "
Department of Health,NHS Sheffield CCG,30/06/2019,C&M-GMS QOF Aspiration,PRC DELEGATED CO-COMMISSIONING,SHIREGREEN MEDICAL CENTRE,27827200,"6,849.89 "
Department of Health,NHS Sheffield CCG,30/06/2019,C&M-PMS Contract Value,PRC DELEGATED CO-COMMISSIONING,SLOAN MEDICAL CENTRE,27604253,"96,282.58 "
Department of Health,NHS Sheffield CCG,30/06/2019,C&M-PMS DES Extended Hours Access,PRC DELEGATED CO-COMMISSIONING,SLOAN MEDICAL CENTRE,27604253,"6,280.45 "
Department of Health,NHS Sheffield CCG,30/06/2019,C&M-PMS PCO Other,PRC DELEGATED CO-COMMISSIONING,SLOAN MEDICAL CENTRE,27604253,802.90 
Department of Health,NHS Sheffield CCG,30/06/2019,C&M-PMS PCO Seniority,PRC DELEGATED CO-COMMISSIONING,SLOAN MEDICAL CENTRE,27604253,"3,382.21 "
Department of Health,NHS Sheffield CCG,30/06/2019,C&M-PMS Prem Actual Rent,PRC DELEGATED CO-COMMISSIONING,SLOAN MEDICAL CENTRE,27604253,"15,535.83 "
Department of Health,NHS Sheffield CCG,30/06/2019,C&M-PMS Prem Notional Rent,PRC DELEGATED CO-COMMISSIONING,SLOAN MEDICAL CENTRE,27604253,608.33 
Department of Health,NHS Sheffield CCG,30/06/2019,C&M-PMS Prem Rates,PRC DELEGATED CO-COMMISSIONING,SLOAN MEDICAL CENTRE,27604253,"3,423.00 "
Department of Health,NHS Sheffield CCG,30/06/2019,C&M-PMS QOF Achievement,PRC DELEGATED CO-COMMISSIONING,SLOAN MEDICAL CENTRE,27604253,"44,315.08 "
Department of Health,NHS Sheffield CCG,30/06/2019,C&M-PMS QOF Aspiration,PRC DELEGATED CO-COMMISSIONING,SLOAN MEDICAL CENTRE,27604253,"10,003.70 "
Department of Health,NHS Sheffield CCG,30/06/2019,C&M-PMS Contract Value,PRC DELEGATED CO-COMMISSIONING,SOTHALL MEDICAL CENTRE,27604255,"71,985.17 "
Department of Health,NHS Sheffield CCG,30/06/2019,C&M-PMS DES Extended Hours Access,PRC DELEGATED CO-COMMISSIONING,SOTHALL MEDICAL CENTRE,27604255,"4,808.43 "
Department of Health,NHS Sheffield CCG,30/06/2019,C&M-PMS PCO Other,PRC DELEGATED CO-COMMISSIONING,SOTHALL MEDICAL CENTRE,27604255,627.60 
Department of Health,NHS Sheffield CCG,30/06/2019,C&M-PMS PCO Seniority,PRC DELEGATED CO-COMMISSIONING,SOTHALL MEDICAL CENTRE,27604255,"2,999.95 "
Department of Health,NHS Sheffield CCG,30/06/2019,C&M-PMS Prem Notional Rent,PRC DELEGATED CO-COMMISSIONING,SOTHALL MEDICAL CENTRE,27604255,"5,116.67 "
Department of Health,NHS Sheffield CCG,30/06/2019,C&M-PMS Prem Rates,PRC DELEGATED CO-COMMISSIONING,SOTHALL MEDICAL CENTRE,27604255,"1,412.00 "
Department of Health,NHS Sheffield CCG,30/06/2019,C&M-PMS Prem Water Rates,PRC DELEGATED CO-COMMISSIONING,SOTHALL MEDICAL CENTRE,27604255,119.88 
Department of Health,NHS Sheffield CCG,30/06/2019,C&M-PMS QOF Achievement,PRC DELEGATED CO-COMMISSIONING,SOTHALL MEDICAL CENTRE,27604255,"36,972.83 "
Department of Health,NHS Sheffield CCG,30/06/2019,C&M-PMS QOF Aspiration,PRC DELEGATED CO-COMMISSIONING,SOTHALL MEDICAL CENTRE,27604255,"8,630.52 "
Department of Health,NHS Sheffield CCG,30/06/2019,Cont Care- Adult 100% Fully Funded,CHC ADULT FULLY FUNDED,SOUTH YORKSHIRE HOUSING ASSOCIATION LTD,27574948,"25,500.00 "
Department of Health,NHS Sheffield CCG,30/06/2019,Cont Care- Adult 100% Fully Funded,CHC ADULT FULLY FUNDED,SOUTH YORKSHIRE HOUSING ASSOCIATION LTD,27611729,"46,763.59 "
Department of Health,NHS Sheffield CCG,30/06/2019,Clinical&Medical-Independent Sector,MENTAL HEALTH CONTRACTS,SOUTH YORKSHIRE HOUSING ASSOCIATION LTD,27653660,"34,435.00 "
Department of Health,NHS Sheffield CCG,30/06/2019,Cont Care-Physical Disab (<65),CHC ADULT FULLY FUNDED,SOUTH YORKSHIRE HOUSING ASSOCIATION LTD,27653894,"80,268.48 "
Department of Health,NHS Sheffield CCG,30/06/2019,C&M-PMS Contract Value,PRC DELEGATED CO-COMMISSIONING,SOUTHEY GREEN MEDICAL CENTRE,27604257,"25,427.16 "
Department of Health,NHS Sheffield CCG,30/06/2019,C&M-PMS DES Extended Hours Access,PRC DELEGATED CO-COMMISSIONING,SOUTHEY GREEN MEDICAL CENTRE,27604257,"1,378.93 "
Department of Health,NHS Sheffield CCG,30/06/2019,C&M-PMS DES Learn Dsblty Hlth Chk,PRC DELEGATED CO-COMMISSIONING,SOUTHEY GREEN MEDICAL CENTRE,27604257,700.00 
Department of Health,NHS Sheffield CCG,30/06/2019,C&M-PMS Out of Hours Opt Outs,PRC DELEGATED CO-COMMISSIONING,SOUTHEY GREEN MEDICAL CENTRE,27604257,8.62 
Department of Health,NHS Sheffield CCG,30/06/2019,C&M-PMS PCO Seniority,PRC DELEGATED CO-COMMISSIONING,SOUTHEY GREEN MEDICAL CENTRE,27604257,756.60 
Department of Health,NHS Sheffield CCG,30/06/2019,C&M-PMS Prem Notional Rent,PRC DELEGATED CO-COMMISSIONING,SOUTHEY GREEN MEDICAL CENTRE,27604257,"3,362.50 "
Department of Health,NHS Sheffield CCG,30/06/2019,C&M-PMS QOF Achievement,PRC DELEGATED CO-COMMISSIONING,SOUTHEY GREEN MEDICAL CENTRE,27604257,"13,210.24 "
Department of Health,NHS Sheffield CCG,30/06/2019,C&M-PMS QOF Aspiration,PRC DELEGATED CO-COMMISSIONING,SOUTHEY GREEN MEDICAL CENTRE,27604257,"2,668.69 "
Department of Health,NHS Sheffield CCG,30/06/2019,Clinical&Medical-Independent Sector,NCAS/OATS,SPAMEDICA LTD,27564190,"115,711.82 "
Department of Health,NHS Sheffield CCG,30/06/2019,Clinical&Medical-Independent Sector,NCAS/OATS,SPAMEDICA LTD,27868453,"113,958.54 "
Department of Health,NHS Sheffield CCG,30/06/2019,C&M-GMS Cost of Drugs -Prescribing,LOCAL ENHANCED SERVICES,STANNINGTON MEDICAL CENTRE,27827204,127.31 
Department of Health,NHS Sheffield CCG,30/06/2019,C&M-GMS Global Sum,PRC DELEGATED CO-COMMISSIONING,STANNINGTON MEDICAL CENTRE,27827204,"25,532.28 "
Department of Health,NHS Sheffield CCG,30/06/2019,C&M-GMS PCO Seniority,PRC DELEGATED CO-COMMISSIONING,STANNINGTON MEDICAL CENTRE,27827204,883.57 
Department of Health,NHS Sheffield CCG,30/06/2019,C&M-GMS Prem Notional Rent,PRC DELEGATED CO-COMMISSIONING,STANNINGTON MEDICAL CENTRE,27827204,"2,575.00 "
Department of Health,NHS Sheffield CCG,30/06/2019,C&M-GMS Prem Rates,PRC DELEGATED CO-COMMISSIONING,STANNINGTON MEDICAL CENTRE,27827204,665.70 
Department of Health,NHS Sheffield CCG,30/06/2019,C&M-GMS Prof Fees Prescribing,PRC DELEGATED CO-COMMISSIONING,STANNINGTON MEDICAL CENTRE,27827204,79.37 
Department of Health,NHS Sheffield CCG,30/06/2019,C&M-GMS QOF Achievement,PRC DELEGATED CO-COMMISSIONING,STANNINGTON MEDICAL CENTRE,27827204,"12,968.71 "
Department of Health,NHS Sheffield CCG,30/06/2019,C&M-GMS QOF Aspiration,PRC DELEGATED CO-COMMISSIONING,STANNINGTON MEDICAL CENTRE,27827204,"2,881.70 "
Department of Health,NHS Sheffield CCG,30/06/2019,C&M-GMS Cost of Drugs -Prescribing,LOCAL ENHANCED SERVICES,STONECROFT MEDICAL CENTRE,27827202,636.40 
Department of Health,NHS Sheffield CCG,30/06/2019,C&M-GMS Global Sum,PRC DELEGATED CO-COMMISSIONING,STONECROFT MEDICAL CENTRE,27827202,"32,209.81 "
Department of Health,NHS Sheffield CCG,30/06/2019,C&M-GMS MPIG Correction Factor,PRC DELEGATED CO-COMMISSIONING,STONECROFT MEDICAL CENTRE,27827202,309.13 
Department of Health,NHS Sheffield CCG,30/06/2019,C&M-GMS PCO Other,PRC DELEGATED CO-COMMISSIONING,STONECROFT MEDICAL CENTRE,27827202,284.70 
Department of Health,NHS Sheffield CCG,30/06/2019,C&M-GMS PCO Seniority,PRC DELEGATED CO-COMMISSIONING,STONECROFT MEDICAL CENTRE,27827202,"1,376.91 "
Department of Health,NHS Sheffield CCG,30/06/2019,C&M-GMS Prem Notional Rent,PRC DELEGATED CO-COMMISSIONING,STONECROFT MEDICAL CENTRE,27827202,"2,808.33 "
Department of Health,NHS Sheffield CCG,30/06/2019,C&M-GMS Prem Rates,PRC DELEGATED CO-COMMISSIONING,STONECROFT MEDICAL CENTRE,27827202,"1,215.00 "
Department of Health,NHS Sheffield CCG,30/06/2019,C&M-GMS Prem Water Rates,PRC DELEGATED CO-COMMISSIONING,STONECROFT MEDICAL CENTRE,27827202,74.67 
Department of Health,NHS Sheffield CCG,30/06/2019,C&M-GMS Prof Fees Prescribing,PRC DELEGATED CO-COMMISSIONING,STONECROFT MEDICAL CENTRE,27827202,101.01 
Department of Health,NHS Sheffield CCG,30/06/2019,C&M-GMS QOF Achievement,PRC DELEGATED CO-COMMISSIONING,STONECROFT MEDICAL CENTRE,27827202,"19,286.98 "
Department of Health,NHS Sheffield CCG,30/06/2019,C&M-GMS QOF Aspiration,PRC DELEGATED CO-COMMISSIONING,STONECROFT MEDICAL CENTRE,27827202,"4,228.40 "
Department of Health,NHS Sheffield CCG,30/06/2019,Clinical&Medical-Independent Sector,MENTAL HEALTH CONTRACTS,SUSASH GB LTD T/A EAGLE HOUSE,27653634,"30,092.00 "
Department of Health,NHS Sheffield CCG,30/06/2019,Cont Care-Physical Disab (<65),CHC ADULT FULLY FUNDED,SUSASH GB LTD T/A EAGLE HOUSE,27653814,"25,486.72 "
Department of Health,NHS Sheffield CCG,30/06/2019,Training Expenses,BEREAVEMENT SERVICE,TICE SEMINARS LTD T/A THE PACIFIC INSTITUTE,27635014,"39,600.00 "
Department of Health,NHS Sheffield CCG,30/06/2019,C&M-GMS Cost of Drugs -Prescribing,LOCAL ENHANCED SERVICES,TOTLEY RISE MEDICAL CENTRE,27827206,"10,954.65 "
Department of Health,NHS Sheffield CCG,30/06/2019,C&M-GMS Global Sum,PRC DELEGATED CO-COMMISSIONING,TOTLEY RISE MEDICAL CENTRE,27827206,"24,909.66 "
Department of Health,NHS Sheffield CCG,30/06/2019,C&M-GMS MPIG Correction Factor,PRC DELEGATED CO-COMMISSIONING,TOTLEY RISE MEDICAL CENTRE,27827206,51.57 
Department of Health,NHS Sheffield CCG,30/06/2019,C&M-GMS PCO Seniority,PRC DELEGATED CO-COMMISSIONING,TOTLEY RISE MEDICAL CENTRE,27827206,"1,102.01 "
Department of Health,NHS Sheffield CCG,30/06/2019,C&M-GMS Prem Notional Rent,PRC DELEGATED CO-COMMISSIONING,TOTLEY RISE MEDICAL CENTRE,27827206,"1,491.67 "
Department of Health,NHS Sheffield CCG,30/06/2019,C&M-GMS Prof Fees Prescribing,PRC DELEGATED CO-COMMISSIONING,TOTLEY RISE MEDICAL CENTRE,27827206,"2,060.64 "
Department of Health,NHS Sheffield CCG,30/06/2019,C&M-GMS QOF Achievement,PRC DELEGATED CO-COMMISSIONING,TOTLEY RISE MEDICAL CENTRE,27827206,"15,135.05 "
Department of Health,NHS Sheffield CCG,30/06/2019,C&M-GMS QOF Aspiration,PRC DELEGATED CO-COMMISSIONING,TOTLEY RISE MEDICAL CENTRE,27827206,"2,304.18 "
Department of Health,NHS Sheffield CCG,30/06/2019,C&M-GMS Cost of Drugs -Prescribing,LOCAL ENHANCED SERVICES,TRAMWAYS MEDICAL CENTRE,27827208,"2,556.64 "
Department of Health,NHS Sheffield CCG,30/06/2019,C&M-GMS Global Sum,PRC DELEGATED CO-COMMISSIONING,TRAMWAYS MEDICAL CENTRE,27827208,"61,245.61 "
Department of Health,NHS Sheffield CCG,30/06/2019,C&M-GMS PCO Other,PRC DELEGATED CO-COMMISSIONING,TRAMWAYS MEDICAL CENTRE,27827208,534.60 
Department of Health,NHS Sheffield CCG,30/06/2019,C&M-GMS PCO Seniority,PRC DELEGATED CO-COMMISSIONING,TRAMWAYS MEDICAL CENTRE,27827208,"3,651.42 "
Department of Health,NHS Sheffield CCG,30/06/2019,C&M-GMS Prem Cost Rent,PRC DELEGATED CO-COMMISSIONING,TRAMWAYS MEDICAL CENTRE,27827208,"4,012.75 "
Department of Health,NHS Sheffield CCG,30/06/2019,C&M-GMS Prem Rates,PRC DELEGATED CO-COMMISSIONING,TRAMWAYS MEDICAL CENTRE,27827208,"2,196.00 "
Department of Health,NHS Sheffield CCG,30/06/2019,C&M-GMS Prof Fees Prescribing,PRC DELEGATED CO-COMMISSIONING,TRAMWAYS MEDICAL CENTRE,27827208,209.25 
Department of Health,NHS Sheffield CCG,30/06/2019,C&M-GMS QOF Achievement,PRC DELEGATED CO-COMMISSIONING,TRAMWAYS MEDICAL CENTRE,27827208,"23,041.21 "
Department of Health,NHS Sheffield CCG,30/06/2019,C&M-GMS QOF Aspiration,PRC DELEGATED CO-COMMISSIONING,TRAMWAYS MEDICAL CENTRE,27827208,"5,645.42 "
Department of Health,NHS Sheffield CCG,30/06/2019,C&M-PMS Contract Value,PRC DELEGATED CO-COMMISSIONING,UNIVERSITY HEALTH SERVICE,27604261,"181,844.16 "
Department of Health,NHS Sheffield CCG,30/06/2019,C&M-PMS Out of Hours Opt Outs,PRC DELEGATED CO-COMMISSIONING,UNIVERSITY HEALTH SERVICE,27604261,283.80 
Department of Health,NHS Sheffield CCG,30/06/2019,C&M-PMS PCO Locum Adop/Pat/Mat,PRC DELEGATED CO-COMMISSIONING,UNIVERSITY HEALTH SERVICE,27604261,"4,506.73 "
Department of Health,NHS Sheffield CCG,30/06/2019,C&M-PMS PCO Seniority,PRC DELEGATED CO-COMMISSIONING,UNIVERSITY HEALTH SERVICE,27604261,"2,966.16 "
Department of Health,NHS Sheffield CCG,30/06/2019,C&M-PMS Prem Notional Rent,PRC DELEGATED CO-COMMISSIONING,UNIVERSITY HEALTH SERVICE,27604261,"15,833.33 "
Department of Health,NHS Sheffield CCG,30/06/2019,C&M-PMS Prem Water Rates,PRC DELEGATED CO-COMMISSIONING,UNIVERSITY HEALTH SERVICE,27604261,608.59 
Department of Health,NHS Sheffield CCG,30/06/2019,C&M-PMS QOF Achievement,PRC DELEGATED CO-COMMISSIONING,UNIVERSITY HEALTH SERVICE,27604261,"18,171.55 "
Department of Health,NHS Sheffield CCG,30/06/2019,C&M-PMS QOF Aspiration,PRC DELEGATED CO-COMMISSIONING,UNIVERSITY HEALTH SERVICE,27604261,"4,031.41 "
Department of Health,NHS Sheffield CCG,30/06/2019,C&M-GMS Cost of Drugs -Prescribing,LOCAL ENHANCED SERVICES,UPPERTHORPE MEDICAL CENTRE,27827211,"2,865.05 "
Department of Health,NHS Sheffield CCG,30/06/2019,C&M-GMS DES Extended Hours Access,PRC DELEGATED CO-COMMISSIONING,UPPERTHORPE MEDICAL CENTRE,27827211,"5,557.03 "
Department of Health,NHS Sheffield CCG,30/06/2019,C&M-GMS Global Sum,PRC DELEGATED CO-COMMISSIONING,UPPERTHORPE MEDICAL CENTRE,27827211,"82,594.63 "
Department of Health,NHS Sheffield CCG,30/06/2019,C&M-GMS MPIG Correction Factor,PRC DELEGATED CO-COMMISSIONING,UPPERTHORPE MEDICAL CENTRE,27827211,662.87 
Department of Health,NHS Sheffield CCG,30/06/2019,C&M-GMS PCO Seniority,PRC DELEGATED CO-COMMISSIONING,UPPERTHORPE MEDICAL CENTRE,27827211,"2,167.84 "
Department of Health,NHS Sheffield CCG,30/06/2019,C&M-GMS Prem Actual Rent,PRC DELEGATED CO-COMMISSIONING,UPPERTHORPE MEDICAL CENTRE,27827211,"29,475.00 "
Department of Health,NHS Sheffield CCG,30/06/2019,C&M-GMS Prem Notional Rent,PRC DELEGATED CO-COMMISSIONING,UPPERTHORPE MEDICAL CENTRE,27827211,"2,497.83 "
Department of Health,NHS Sheffield CCG,30/06/2019,C&M-GMS Prem Rates,PRC DELEGATED CO-COMMISSIONING,UPPERTHORPE MEDICAL CENTRE,27827211,"2,318.00 "
Department of Health,NHS Sheffield CCG,30/06/2019,C&M-GMS Prof Fees Prescribing,PRC DELEGATED CO-COMMISSIONING,UPPERTHORPE MEDICAL CENTRE,27827211,283.82 
Department of Health,NHS Sheffield CCG,30/06/2019,C&M-GMS QOF Achievement,PRC DELEGATED CO-COMMISSIONING,UPPERTHORPE MEDICAL CENTRE,27827211,"44,329.15 "
Department of Health,NHS Sheffield CCG,30/06/2019,C&M-GMS QOF Aspiration,PRC DELEGATED CO-COMMISSIONING,UPPERTHORPE MEDICAL CENTRE,27827211,"9,072.83 "
Department of Health,NHS Sheffield CCG,30/06/2019,C&M-PMS Contract Value,PRC DELEGATED CO-COMMISSIONING,UPWELL STREET SURGERY,27604263,"38,163.38 "
Department of Health,NHS Sheffield CCG,30/06/2019,C&M-PMS Out of Hours Opt Outs,PRC DELEGATED CO-COMMISSIONING,UPWELL STREET SURGERY,27604263,0.90 
Department of Health,NHS Sheffield CCG,30/06/2019,C&M-PMS PCO Other,PRC DELEGATED CO-COMMISSIONING,UPWELL STREET SURGERY,27604263,324.80 
Department of Health,NHS Sheffield CCG,30/06/2019,C&M-PMS PCO Seniority,PRC DELEGATED CO-COMMISSIONING,UPWELL STREET SURGERY,27604263,791.13 
Department of Health,NHS Sheffield CCG,30/06/2019,C&M-PMS Prem Notional Rent,PRC DELEGATED CO-COMMISSIONING,UPWELL STREET SURGERY,27604263,"8,137.50 "
Department of Health,NHS Sheffield CCG,30/06/2019,C&M-PMS Prem Rates,PRC DELEGATED CO-COMMISSIONING,UPWELL STREET SURGERY,27604263,"1,340.00 "
Department of Health,NHS Sheffield CCG,30/06/2019,C&M-PMS Prem Water Rates,PRC DELEGATED CO-COMMISSIONING,UPWELL STREET SURGERY,27604263,150.27 
Department of Health,NHS Sheffield CCG,30/06/2019,C&M-PMS QOF Achievement,PRC DELEGATED CO-COMMISSIONING,UPWELL STREET SURGERY,27604263,"14,857.10 "
Department of Health,NHS Sheffield CCG,30/06/2019,C&M-PMS QOF Aspiration,PRC DELEGATED CO-COMMISSIONING,UPWELL STREET SURGERY,27604263,"4,056.38 "
Department of Health,NHS Sheffield CCG,30/06/2019,C&M-PMS Contract Value,PRC DELEGATED CO-COMMISSIONING,VALLEY MEDICAL CENTRE,27604265,"79,549.24 "
Department of Health,NHS Sheffield CCG,30/06/2019,C&M-PMS PCO Seniority,PRC DELEGATED CO-COMMISSIONING,VALLEY MEDICAL CENTRE,27604265,"4,137.74 "
Department of Health,NHS Sheffield CCG,30/06/2019,C&M-PMS Prem Actual Rent,PRC DELEGATED CO-COMMISSIONING,VALLEY MEDICAL CENTRE,27604265,"25,468.75 "
Department of Health,NHS Sheffield CCG,30/06/2019,C&M-PMS Prem Rates,PRC DELEGATED CO-COMMISSIONING,VALLEY MEDICAL CENTRE,27604265,"1,664.00 "
Department of Health,NHS Sheffield CCG,30/06/2019,C&M-PMS QOF Achievement,PRC DELEGATED CO-COMMISSIONING,VALLEY MEDICAL CENTRE,27604265,"36,180.26 "
Department of Health,NHS Sheffield CCG,30/06/2019,C&M-PMS QOF Aspiration,PRC DELEGATED CO-COMMISSIONING,VALLEY MEDICAL CENTRE,27604265,"8,453.91 "
Department of Health,NHS Sheffield CCG,30/06/2019,C&M-GMS Cost of Drugs -Prescribing,LOCAL ENHANCED SERVICES,WALKLEY HOUSE MEDICAL CENTRE,27827216,"1,471.42 "
Department of Health,NHS Sheffield CCG,30/06/2019,C&M-GMS Global Sum,PRC DELEGATED CO-COMMISSIONING,WALKLEY HOUSE MEDICAL CENTRE,27827216,"85,060.17 "
Department of Health,NHS Sheffield CCG,30/06/2019,C&M-GMS Prem Notional Rent,PRC DELEGATED CO-COMMISSIONING,WALKLEY HOUSE MEDICAL CENTRE,27827216,"5,635.50 "
Department of Health,NHS Sheffield CCG,30/06/2019,C&M-GMS Prem Rates,PRC DELEGATED CO-COMMISSIONING,WALKLEY HOUSE MEDICAL CENTRE,27827216,"1,845.00 "
Department of Health,NHS Sheffield CCG,30/06/2019,C&M-GMS Prof Fees Prescribing,PRC DELEGATED CO-COMMISSIONING,WALKLEY HOUSE MEDICAL CENTRE,27827216,163.55 
Department of Health,NHS Sheffield CCG,30/06/2019,C&M-GMS QOF Achievement,PRC DELEGATED CO-COMMISSIONING,WALKLEY HOUSE MEDICAL CENTRE,27827216,"37,704.65 "
Department of Health,NHS Sheffield CCG,30/06/2019,C&M-GMS QOF Aspiration,PRC DELEGATED CO-COMMISSIONING,WALKLEY HOUSE MEDICAL CENTRE,27827216,"8,602.90 "
Department of Health,NHS Sheffield CCG,30/06/2019,C&M-GMS Cost of Drugs -Prescribing,LOCAL ENHANCED SERVICES,WHITE HOUSE SURGERY SHEFFIELD,27827214,"1,190.64 "
Department of Health,NHS Sheffield CCG,30/06/2019,C&M-GMS DES Extended Hours Access,PRC DELEGATED CO-COMMISSIONING,WHITE HOUSE SURGERY SHEFFIELD,27827214,"3,117.43 "
Department of Health,NHS Sheffield CCG,30/06/2019,C&M-GMS Global Sum,PRC DELEGATED CO-COMMISSIONING,WHITE HOUSE SURGERY SHEFFIELD,27827214,"51,313.04 "
Department of Health,NHS Sheffield CCG,30/06/2019,C&M-GMS MPIG Correction Factor,PRC DELEGATED CO-COMMISSIONING,WHITE HOUSE SURGERY SHEFFIELD,27827214,695.65 
Department of Health,NHS Sheffield CCG,30/06/2019,C&M-GMS PCO Seniority,PRC DELEGATED CO-COMMISSIONING,WHITE HOUSE SURGERY SHEFFIELD,27827214,"1,626.03 "
Department of Health,NHS Sheffield CCG,30/06/2019,C&M-GMS Prem Notional Rent,PRC DELEGATED CO-COMMISSIONING,WHITE HOUSE SURGERY SHEFFIELD,27827214,"9,412.50 "
Department of Health,NHS Sheffield CCG,30/06/2019,C&M-GMS Prem Rates,PRC DELEGATED CO-COMMISSIONING,WHITE HOUSE SURGERY SHEFFIELD,27827214,"2,443.00 "
Department of Health,NHS Sheffield CCG,30/06/2019,C&M-GMS Prof Fees Prescribing,PRC DELEGATED CO-COMMISSIONING,WHITE HOUSE SURGERY SHEFFIELD,27827214,303.04 
Department of Health,NHS Sheffield CCG,30/06/2019,C&M-GMS QOF Achievement,PRC DELEGATED CO-COMMISSIONING,WHITE HOUSE SURGERY SHEFFIELD,27827214,"29,823.95 "
Department of Health,NHS Sheffield CCG,30/06/2019,C&M-GMS QOF Aspiration,PRC DELEGATED CO-COMMISSIONING,WHITE HOUSE SURGERY SHEFFIELD,27827214,"6,233.52 "
Department of Health,NHS Sheffield CCG,30/06/2019,Cont Care-Physical Disab (<65),CHC ADULT FULLY FUNDED,WILLOWBECK HEALTH CARE LTD,27653800,"107,772.54 "
Department of Health,NHS Sheffield CCG,30/06/2019,C&M-PMS Contract Value,PRC DELEGATED CO-COMMISSIONING,WINCOBANK MEDICAL CENTRE,27604269,"62,996.04 "
Department of Health,NHS Sheffield CCG,30/06/2019,C&M-PMS DES Extended Hours Access,PRC DELEGATED CO-COMMISSIONING,WINCOBANK MEDICAL CENTRE,27604269,"3,647.05 "
Department of Health,NHS Sheffield CCG,30/06/2019,C&M-PMS PCO Seniority,PRC DELEGATED CO-COMMISSIONING,WINCOBANK MEDICAL CENTRE,27604269,877.93 
Department of Health,NHS Sheffield CCG,30/06/2019,C&M-PMS Prem Healthcentre Rent,PRC DELEGATED CO-COMMISSIONING,WINCOBANK MEDICAL CENTRE,27604269,"47,316.35 "
Department of Health,NHS Sheffield CCG,30/06/2019,C&M-PMS QOF Achievement,PRC DELEGATED CO-COMMISSIONING,WINCOBANK MEDICAL CENTRE,27604269,"27,129.46 "
Department of Health,NHS Sheffield CCG,30/06/2019,C&M-PMS QOF Aspiration,PRC DELEGATED CO-COMMISSIONING,WINCOBANK MEDICAL CENTRE,27604269,"6,283.36 "
Department of Health,NHS Sheffield CCG,30/06/2019,C&M-PMS Contract Value,PRC DELEGATED CO-COMMISSIONING,WOODHOUSE HEALTH CENTRE,27604267,"101,920.12 "
Department of Health,NHS Sheffield CCG,30/06/2019,C&M-PMS DES Extended Hours Access,PRC DELEGATED CO-COMMISSIONING,WOODHOUSE HEALTH CENTRE,27604267,"5,829.20 "
Department of Health,NHS Sheffield CCG,30/06/2019,C&M-PMS PCO Other,PRC DELEGATED CO-COMMISSIONING,WOODHOUSE HEALTH CENTRE,27604267,746.40 
Department of Health,NHS Sheffield CCG,30/06/2019,C&M-PMS PCO Seniority,PRC DELEGATED CO-COMMISSIONING,WOODHOUSE HEALTH CENTRE,27604267,"4,664.28 "
Department of Health,NHS Sheffield CCG,30/06/2019,C&M-PMS Prem Notional Rent,PRC DELEGATED CO-COMMISSIONING,WOODHOUSE HEALTH CENTRE,27604267,"6,338.58 "
Department of Health,NHS Sheffield CCG,30/06/2019,C&M-PMS QOF Achievement,PRC DELEGATED CO-COMMISSIONING,WOODHOUSE HEALTH CENTRE,27604267,"63,373.29 "
Department of Health,NHS Sheffield CCG,30/06/2019,C&M-PMS QOF Aspiration,PRC DELEGATED CO-COMMISSIONING,WOODHOUSE HEALTH CENTRE,27604267,"13,912.30 "
Department of Health,NHS Sheffield CCG,30/06/2019,C&M-PMS Contract Value,PRC DELEGATED CO-COMMISSIONING,WOODSEATS MEDICAL CENTRE,27607590,"77,234.12 "
Department of Health,NHS Sheffield CCG,30/06/2019,C&M-PMS DES Extended Hours Access,PRC DELEGATED CO-COMMISSIONING,WOODSEATS MEDICAL CENTRE,27607590,"4,834.08 "
Department of Health,NHS Sheffield CCG,30/06/2019,C&M-PMS PCO Locum Adop/Pat/Mat,PRC DELEGATED CO-COMMISSIONING,WOODSEATS MEDICAL CENTRE,27607590,"4,754.64 "
Department of Health,NHS Sheffield CCG,30/06/2019,C&M-PMS PCO Other,PRC DELEGATED CO-COMMISSIONING,WOODSEATS MEDICAL CENTRE,27607590,"1,868.10 "
Department of Health,NHS Sheffield CCG,30/06/2019,C&M-PMS PCO Seniority,PRC DELEGATED CO-COMMISSIONING,WOODSEATS MEDICAL CENTRE,27607590,"1,360.90 "
Department of Health,NHS Sheffield CCG,30/06/2019,C&M-PMS Prem Notional Rent,PRC DELEGATED CO-COMMISSIONING,WOODSEATS MEDICAL CENTRE,27607590,"11,666.67 "
Department of Health,NHS Sheffield CCG,30/06/2019,C&M-PMS Prem Rates,PRC DELEGATED CO-COMMISSIONING,WOODSEATS MEDICAL CENTRE,27607590,"3,100.00 "
Department of Health,NHS Sheffield CCG,30/06/2019,C&M-PMS QOF Achievement,PRC DELEGATED CO-COMMISSIONING,WOODSEATS MEDICAL CENTRE,27607590,"39,166.25 "
Department of Health,NHS Sheffield CCG,30/06/2019,C&M-PMS QOF Aspiration,PRC DELEGATED CO-COMMISSIONING,WOODSEATS MEDICAL CENTRE,27607590,"8,242.64 "
Department of Health,NHS Sheffield CCG,30/06/2019,Hcare Srv Rec NHS Trust-Contract Baseline,AMBULANCE SERVICES,YORKSHIRE AMBULANCE SERVICE NHS TRUST,27524297,"1,674,240.00 "
Department of Health,NHS Sheffield CCG,30/06/2019,Hcare Srv Rec NHS Trust-Contract Baseline,AMBULANCE SERVICES,YORKSHIRE AMBULANCE SERVICE NHS TRUST,27524303,"125,843.75 "
Department of Health,NHS Sheffield CCG,30/06/2019,Hcare Srv Rec NHS Trust-Contract Baseline,NHS 111,YORKSHIRE AMBULANCE SERVICE NHS TRUST,27524312,"133,605.27 "
Department of Health,NHS Sheffield CCG,30/06/2019,Hcare Srv Rec NHS Trust-Contract Baseline,PATIENT TRANSPORT,YORKSHIRE AMBULANCE SERVICE NHS TRUST,27545035,"254,037.11 "
,,,,,,,"63,912,257.54 "
